Workbook

Sheet Summary
B1: Zero-Inch Study
B2: Customer Portion | C2: Footage
A3: WNSA | B3: ='Zero Inch-Min System Study'!O65 -> 0.673 | C3: ='Zero Inch-Min System Study'!B57 -> 23240664.48
A4: Fort Bliss | B4: ='Zero Inch-Min System Study'!O101 -> 0.5595 | C4: ='Zero Inch-Min System Study'!B91 -> 734279.04
A5: CGSA | B5: ='Zero Inch-Min System Study'!O29 -> 0.6447 | C5: ='Zero Inch-Min System Study'!B26 -> 22323528.48
A6: RGVSA | B6: ='Zero Inch-Min System Study'!O137 -> 0.5606 | C6: ='Zero Inch-Min System Study'!B126 -> 12421728
A7: TGS | B7: =(B5*C5+B3*C3+B4*C4+B6*C6)/C7 -> 0.6370447622 | C7: =SUM(C3:C6) -> 58720200

Sheet Zero Inch-Min System Study
A1: CGSA
A2: Size | B2: Footage | C2: Composition | D2: Size | E2: Plastic | F2: Cost/Ft | G2: LN(Cost/Ft) | H2: Configured Cost | J2: SUMMARY OUTPUT
A3: 1 | B3: ='Footage & Cost Per Foot'!S5 -> 259195.2 | C3: S | D3: =A3 -> 1 | E3: 0 | F3: ='Footage & Cost Per Foot'!P5 -> 37.70274185 | G3: =LN(F3) -> 3.62973282 | H3: =EXP($K$18+$K$19*D3+$K$20*E3)*B3 -> 10080383.27
A4: 2 | B4: ='Footage & Cost Per Foot'!S6 -> 6482572.8 | C4: S | D4: =A4 -> 2 | E4: 0 | F4: ='Footage & Cost Per Foot'!P6 -> 45.25514766 | G4: =LN(F4) -> 3.812316424 | H4: =EXP($K$18+$K$19*D4+$K$20*E4)*B4 -> 282916654.3 | J4: Regression Statistics
A5: 3 | B5: ='Footage & Cost Per Foot'!S7 -> 129143.52 | C5: S | D5: 3 | E5: 0 | F5: ='Footage & Cost Per Foot'!P7 -> 51.35662547 | G5: 3.938793954 | H5: 6324770.204 | J5: Multiple R | K5: 0.986460035
A6: 4 | B6: ='Footage & Cost Per Foot'!S8 -> 2485824 | C6: S | D6: 4 | E6: 0 | F6: ='Footage & Cost Per Foot'!P8 -> 50.70263201 | G6: 3.925977823 | H6: 136616617.6 | J6: R Square | K6: 0.9731034006
A7: 6 | B7: ='Footage & Cost Per Foot'!S9 -> 1955764.8 | C7: S | D7: 6 | E7: 0 | F7: ='Footage & Cost Per Foot'!P9 -> 63.58242531 | G7: 4.152337101 | H7: 135354225.5 | J7: Adjusted R Square | K7: 0.9704137407
A8: 8 | B8: ='Footage & Cost Per Foot'!S10 -> 388655.52 | C8: S | D8: 8 | E8: 0 | F8: ='Footage & Cost Per Foot'!P10 -> 84.1078173 | G8: 4.432099515 | H8: 33872096.2 | J8: Standard Error | K8: 0.1185411634
A9: 10 | B9: ='Footage & Cost Per Foot'!S11 -> 149988.96 | C9: S | D9: 10 | E9: 0 | F9: ='Footage & Cost Per Foot'!P11 -> 125.8071694 | G9: 4.834750333 | H9: 16461089.21 | J9: Observations | K9: 23
A10: 12 | B10: ='Footage & Cost Per Foot'!S12 -> 292897.44 | C10: S | D10: 12 | E10: 0 | F10: ='Footage & Cost Per Foot'!P12 -> 129.6765372 | G10: 4.865043175 | H10: 40479663.32
A11: 14 | B11: ='Footage & Cost Per Foot'!S13 -> 21637.44 | C11: S | D11: 14 | E11: 0 | F11: ='Footage & Cost Per Foot'!P13 -> 207.7390604 | G11: 5.336282775 | H11: 3765730.478 | J11: ANOVA
A12: 16 | B12: ='Footage & Cost Per Foot'!S14 -> 47023.68 | C12: S | D12: 16 | E12: 0 | F12: ='Footage & Cost Per Foot'!P14 -> 191.0747038 | G12: 5.252664471 | H12: 10305807.14 | K12: df | L12: SS | M12: MS | N12: F | O12: Significance F
A13: 20 | B13: ='Footage & Cost Per Foot'!S15 -> 21426.24 | C13: S | D13: 20 | E13: 0 | F13: ='Footage & Cost Per Foot'!P15 -> 300.8608606 | G13: 5.706647901 | H13: 7446555.744 | J13: Regression | K13: 2 | L13: 10.16786994 | M13: 5.083934968 | N13: 361.7942131 | O13: 1.981407226e-16
A14: 1 | B14: ='Footage & Cost Per Foot'!T5 -> 58.08 | C14: W | D14: 1 | E14: 0 | F14: ='Footage & Cost Per Foot'!Q5 -> 41.87744872 | G14: 3.734747465 | H14: 2258.794378 | J14: Residual | K14: 20 | L14: 0.2810401485 | M14: 0.01405200742
A15: 2 | B15: ='Footage & Cost Per Foot'!T6 -> 3447.84 | C15: W | D15: 2 | E15: 0 | F15: ='Footage & Cost Per Foot'!Q6 -> 49.68152322 | G15: 3.905633098 | H15: 150472.8736 | J15: Total | K15: 22 | L15: 10.44891008
A16: 3 | B16: ='Footage & Cost Per Foot'!T7 -> 2402.4 | C16: W | D16: 3 | E16: 0 | F16: ='Footage & Cost Per Foot'!Q7 -> 55.55877254 | G16: 4.017441425 | H16: 117656.9133
A17: 4 | B17: ='Footage & Cost Per Foot'!T8 -> 88202.4 | C17: W | D17: 4 | E17: 0 | F17: ='Footage & Cost Per Foot'!Q8 -> 51.55918436 | G17: 3.942730359 | H17: 4847452.414 | K17: Coefficients | L17: Standard Error | M17: t Stat | N17: P-value | O17: Lower 95% | P17: Upper 95%
A18: 6 | B18: ='Footage & Cost Per Foot'!T9 -> 2481.6 | C18: W | D18: 6 | E18: 0 | F18: ='Footage & Cost Per Foot'!Q9 -> 63.49366709 | G18: 4.15094017 | H18: 171746.1354 | J18: Intercept | K18: 3.545495359 | L18: 0.04507631151 | M18: 78.65540103 | N18: 2.129843151e-26 | O18: 3.451467821 | P18: 3.639522897
A19: 1 | B19: ='Footage & Cost Per Foot'!U5 -> 204341.28 | C19: P | D19: 1 | E19: 1 | F19: ='Footage & Cost Per Foot'!R5 -> 22.48267089 | G19: 3.11274483 | H19: 4998014.508 | J19: Size | K19: 0.1152697595 | L19: 0.004852147422 | M19: 23.75644215 | N19: 3.94725573e-16 | O19: 0.1051483573 | P19: 0.1253911617
A20: 2 | B20: ='Footage & Cost Per Foot'!U6 -> 6163771.68 | C20: P | D20: 2 | E20: 1 | F20: ='Footage & Cost Per Foot'!R6 -> 24.02121002 | G20: 3.178937191 | H20: 169179978.9 | J20: Plastic | K20: -0.4637606414 | L20: 0.05446907909 | M20: -8.514200151 | N20: 4.394229465e-08 | O20: -0.5773811494 | P20: -0.3501401334
A21: 3 | B21: ='Footage & Cost Per Foot'!U7 -> 191310.24 | C21: P | D21: 3 | E21: 1 | F21: ='Footage & Cost Per Foot'!R7 -> 30.13709625 | G21: 3.405756847 | H21: 5892528.076
A22: 4 | B22: ='Footage & Cost Per Foot'!U8 -> 2084322.24 | C22: P | D22: 4 | E22: 1 | F22: ='Footage & Cost Per Foot'!R8 -> 31.9146525 | G22: 3.46306523 | H22: 72042591.53
A23: 6 | B23: ='Footage & Cost Per Foot'!U9 -> 1266107.04 | C23: P | D23: 6 | E23: 1 | F23: ='Footage & Cost Per Foot'!R9 -> 43.4585966 | G23: 3.771808683 | H23: 55108289.22
A24: 8 | B24: ='Footage & Cost Per Foot'!U10 -> 80815.68 | C24: P | D24: 8 | E24: 1 | F24: ='Footage & Cost Per Foot'!R10 -> 56.36052663 | G24: 4.031769031 | H24: 4429596.608 | J24: Zero-Inch Study:
A25: 12 | B25: ='Footage & Cost Per Foot'!U12 -> 2138.4 | C25: P | D25: 12 | E25: 1 | F25: ='Footage & Cost Per Foot'!R12 -> 116.48617 | G25: 4.757772554 | H25: 185866.6939 | K25: Zero-Inch | M25: Zero-Inch | N25: Configured | O25: Customer
B26: =SUM(B3:B25) -> 22323528.48 | H26: =SUM(H3:H25) -> 1000750046 | K26: Cost/Ft | L26: Footage | M26: Total Cost | N26: Cost | O26: Portion
A27: CK | B27: ='Footage & Cost Per Foot'!V16 -> 22323528.48 | J27: Plastic | K27: =EXP(K18+K19*0+K20*1) -> 21.79617983 | L27: =SUM(B19:B25) -> 9992806.56 | M27: =K27*L27 -> 217805008.8
B28: =B27-B26 -> 0 | J28: Steel/Wrought Iron | K28: =EXP(K18+K19*0+K20*0) -> 34.65684867 | L28: =SUM(B3:B18) -> 12330721.92 | M28: =K28*L28 -> 427343963.6
M29: =M28+M27 -> 645148972.4 | N29: =H26 -> 1000750046 | O29: =ROUND(M29/N29,4) -> 0.6447
J31: Minimum System Study:
K32: Two-Inch | L32: Two-Inch | M32: Configured | N32: Customer
K33: Cost/Ft | L33: Total Cost | M33: Cost | N33: Portion
J34: Plastic | K34: =F20 -> 24.02121002 | L34: =K34*L27 -> 240039305.1
J35: Steel/Wrought Iron | K35: =(F15*B15+F4*B4)/(B4+B15) -> 45.25750063 | L35: =K35*L28 -> 558057655.1
L36: =SUM(L34:L35) -> 798096960.2 | M36: =N29 -> 1000750046 | N36: =L36/M36 -> 0.7974987996
M37: w/Actual Cost | N37: =L36/SUMPRODUCT(F3:F25,B3:B25) -> 0.8318601699
A39: WNSA
A40: Size | B40: Footage | C40: Composition | D40: Size | E40: Plastic | F40: Cost/Ft | G40: LN(Cost/Ft) | H40: Configured Cost | J40: SUMMARY OUTPUT
A41: 1 | B41: ='Footage & Cost Per Foot'!P23 -> 210883.2 | C41: S | D41: 1 | E41: 0 | F41: ='Footage & Cost Per Foot'!N23 -> 41.40945347 | G41: =LN(F41) -> 3.723509199 | H41: =EXP($K$56+$K$57*D41+$K$58*E41)*B41 -> 9239780.665
A42: 2 | B42: ='Footage & Cost Per Foot'!P24 -> 6424630.08 | C42: S | D42: 2 | E42: 0 | F42: ='Footage & Cost Per Foot'!N24 -> 43.3719048 | G42: =LN(F42) -> 3.769811877 | H42: 319213534.6 | J42: Regression Statistics
A43: 3 | B43: ='Footage & Cost Per Foot'!P25 -> 224822.4 | C43: S | D43: 3 | E43: 0 | F43: ='Footage & Cost Per Foot'!N25 -> 64.46102405 | G43: 4.166060763 | H43: 12667363.74 | J43: Multiple R | K43: 0.9823289606
A44: 4 | B44: ='Footage & Cost Per Foot'!P26 -> 2474076 | C44: S | D44: 4 | E44: 0 | F44: ='Footage & Cost Per Foot'!N26 -> 58.92700265 | G44: 4.076299435 | H44: 158078639.5 | J44: R Square | K44: 0.9649701869
A45: 6 | B45: ='Footage & Cost Per Foot'!P27 -> 841859.04 | C45: S | D45: 6 | E45: 0 | F45: ='Footage & Cost Per Foot'!N27 -> 85.8861469 | G45: 4.453022546 | H45: 69171392.01 | J45: Adjusted R Square | K45: 0.9595809849
A46: 8 | B46: ='Footage & Cost Per Foot'!P28 -> 97273.44 | C46: S | D46: 8 | E46: 0 | F46: ='Footage & Cost Per Foot'!N28 -> 121.7469599 | G46: 4.801944792 | H46: 10277994.79 | J46: Standard Error | K46: 0.1353854019
A47: 10 | B47: ='Footage & Cost Per Foot'!P29 -> 14657.28 | C47: S | D47: 10 | E47: 0 | F47: ='Footage & Cost Per Foot'!N29 -> 142.0981237 | G47: 4.956517831 | H47: 1991565.001 | J47: Observations | K47: 16
A48: 12 | B48: ='Footage & Cost Per Foot'!P30 -> 9921.12 | C48: S | D48: 12 | E48: 0 | F48: ='Footage & Cost Per Foot'!N30 -> 210.663259 | G48: 5.35026093 | H48: 1733519.721
A49: 16 | B49: ='Footage & Cost Per Foot'!P32 -> 122295.36 | C49: S | D49: 16 | E49: 0 | F49: ='Footage & Cost Per Foot'!N32 -> 218.5819117 | G49: 5.387160826 | H49: =EXP($K$56+$K$57*D49+$K$58*E49)*B49 -> 35337191.43 | J49: ANOVA
A50: 1 | B50: ='Footage & Cost Per Foot'!Q23 -> 98572.32 | C50: P | D50: 1 | E50: 1 | F50: ='Footage & Cost Per Foot'!O23 -> 27.85478095 | G50: 3.327004619 | H50: 2583821.894 | K50: df | L50: SS | M50: MS | N50: F | O50: Significance F
A51: 2 | B51: ='Footage & Cost Per Foot'!Q24 -> 9237703.2 | C51: P | D51: 2 | E51: 1 | F51: ='Footage & Cost Per Foot'!O24 -> 24.88170216 | G51: 3.21413268 | H51: 274590236.8 | J51: Regression | K51: 2 | L51: 6.563917366 | M51: 3.281958683 | N51: 179.0562284 | O51: 3.458165955e-10
A52: 3 | B52: ='Footage & Cost Per Foot'!Q25 -> 174139.68 | C52: P | D52: 3 | E52: 1 | F52: ='Footage & Cost Per Foot'!O25 -> 36.92229975 | G52: 3.608815698 | H52: 5869921.865 | J52: Residual | K52: 13 | L52: 0.2382796916 | M52: 0.01832920704
A53: 4 | B53: ='Footage & Cost Per Foot'!Q26 -> 2371084.32 | C53: P | D53: 4 | E53: 1 | F53: ='Footage & Cost Per Foot'!O26 -> 35.49260326 | G53: 3.569324316 | H53: 90634818.26 | J53: Total | K53: 15 | L53: 6.802197057
A54: 6 | B54: ='Footage & Cost Per Foot'!Q27 -> 876078.72 | C54: P | D54: 6 | E54: 1 | F54: ='Footage & Cost Per Foot'!O27 -> 48.83925779 | G54: 3.888534452 | H54: 43064378.49
A55: 8 | B55: ='Footage & Cost Per Foot'!Q28 -> 55973.28 | C55: P | D55: 8 | E55: 1 | F55: ='Footage & Cost Per Foot'!O28 -> 66.02154648 | G55: 4.189981151 | H55: 3538203.373 | K55: Coefficients | L55: Standard Error | M55: t Stat | N55: P-value | O55: Lower 95% | P55: Upper 95%
A56: 10 | B56: ='Footage & Cost Per Foot'!Q29 -> 6695.04 | C56: P | D56: 10 | E56: 1 | F56: ='Footage & Cost Per Foot'!O29 -> 86.58771018 | G56: 4.461157891 | H56: 544229.644 | J56: Intercept | K56: 3.65421679 | L56: 0.0727004042 | M56: 50.26405053 | N56: 2.801475095e-16 | O56: 3.497157115 | P56: 3.811276465
B57: =SUM(B41:B56) -> 23240664.48 | H57: =SUM(H41:H56) -> 1038536592 | J57: Size | K57: 0.1257522111 | L57: 0.008273900942 | M57: 15.19866046 | N57: 1.17355516e-09 | O57: 0.1078775348 | P57: 0.1436268874
A58: CK | B58: ='Footage & Cost Per Foot'!R34 -> 23240664.48 | J58: Plastic | K58: -0.5137345572 | L58: 0.07026826066 | M58: -7.311047012 | N58: 5.908011333e-06 | O58: -0.665539905 | P58: -0.3619292093
B59: =B58-B57 -> 0
J60: Zero-Inch Study:
K61: Zero-Inch | M61: Zero-Inch | N61: Configured | O61: Customer
K62: Cost/Ft | L62: Footage | M62: Total Cost | N62: Cost | O62: Portion
J63: Plastic | K63: =EXP(K56+K57*0+K58*1) -> 23.11501099 | L63: =SUM(B50:B56) -> 12820246.56 | M63: =K63*L63 -> 296340140.1
J64: Steel | K64: =EXP(K56+K57*0+K58*0) -> 38.63724818 | L64: =SUM(B41:B49) -> 10420417.92 | M64: =K64*L64 -> 402616273.3
M65: =M64+M63 -> 698956413.4 | N65: =H57 -> 1038536592 | O65: =ROUND(M65/N65,4) -> 0.673
J67: Minimum System Study:
K68: Two-Inch | L68: Two-Inch | M68: Configured | N68: Customer
K69: Cost/Ft | L69: Total Cost | M69: Cost | N69: Portion
J70: Plastic | K70: =F51 -> 24.88170216 | L70: =K70*L63 -> 318989556.5
J71: Steel | K71: =F42 -> 43.3719048 | L71: =K71*L64 -> 451953374
L72: =SUM(L70:L71) -> 770942930.4 | M72: =N65 -> 1038536592 | N72: =L72/M72 -> 0.7423358374
M73: w/Actual Cost | N73: =L72/SUMPRODUCT(F41:F56,B41:B56) -> 0.8263429882
A75: Fort Bliss
A76: Size | B76: Footage | C76: Composition | D76: Size | E76: Plastic | F76: Cost/Ft | G76: LN(Cost/Ft) | H76: Configured Cost | J76: SUMMARY OUTPUT
A77: 1 | B77: ='Footage & Cost Per Foot'!B42 -> 8606.4 | C77: S | D77: 1 | E77: 0 | F77: ='Footage & Cost Per Foot'!D42 -> 35.09402673 | G77: =LN(F77) -> 3.558030937 | H77: =EXP($K$92+$K$93*D77+$K$94*E77)*B77 -> 324467.8058
A78: 2 | B78: ='Footage & Cost Per Foot'!B43 -> 86222.4 | C78: S | D78: 2 | E78: 0 | F78: ='Footage & Cost Per Foot'!D43 -> 40.86579017 | G78: =LN(F78) -> 3.710293287 | H78: 3676620.947 | J78: Regression Statistics
A79: 3 | B79: ='Footage & Cost Per Foot'!B44 -> 14625.6 | C79: S | D79: 3 | E79: 0 | F79: ='Footage & Cost Per Foot'!D44 -> 53.63624838 | G79: 3.982225115 | H79: 705376.6944 | J79: Multiple R | K79: 0.9896214603
A80: 4 | B80: ='Footage & Cost Per Foot'!B45 -> 73180.8 | C80: S | D80: 4 | E80: 0 | F80: ='Footage & Cost Per Foot'!D45 -> 53.08345977 | G80: 3.971865388 | H80: 3991932.901 | J80: R Square | K80: 0.9793506346
A81: 6 | B81: ='Footage & Cost Per Foot'!B46 -> 24921.6 | C81: S | D81: 6 | E81: 0 | F81: ='Footage & Cost Per Foot'!D46 -> 77.65356149 | G81: 4.352257415 | H81: 1739079.081 | J81: Adjusted R Square | K81: 0.9755962045
A82: 8 | B82: ='Footage & Cost Per Foot'!B47 -> 26452.8 | C82: S | D82: 8 | E82: 0 | F82: ='Footage & Cost Per Foot'!D47 -> 102.1425959 | G82: 4.626369836 | H82: 2361415.384 | J82: Standard Error | K82: 0.1027556294
A83: 12 | B83: ='Footage & Cost Per Foot'!B49 -> 12091.2 | C83: S | D83: 12 | E83: 0 | F83: ='Footage & Cost Per Foot'!D49 -> 210.663259 | G83: 5.35026093 | H83: 1766382.708 | J83: Observations | K83: 14
A84: 16 | B84: ='Footage & Cost Per Foot'!B51 -> 10866.24 | C84: S | D84: 16 | E84: 0 | F84: ='Footage & Cost Per Foot'!D51 -> 218.5819117 | G84: 5.387160826 | H84: 2597821.775
A85: 1 | B85: ='Footage & Cost Per Foot'!C42 -> 6072 | C85: P | D85: 1 | E85: 1 | F85: ='Footage & Cost Per Foot'!E42 -> 23.25266551 | G85: 3.146419771 | H85: 142882.5415 | J85: ANOVA
A86: 2 | B86: ='Footage & Cost Per Foot'!C43 -> 143457.6 | C86: P | D86: 2 | E86: 1 | F86: ='Footage & Cost Per Foot'!E43 -> 23.85422958 | G86: 3.171961543 | H86: 3818120.491 | K86: df | L86: SS | M86: MS | N86: F | O86: Significance F
A87: 3 | B87: ='Footage & Cost Per Foot'!C44 -> 14303.52 | C87: P | D87: 3 | E87: 1 | F87: ='Footage & Cost Per Foot'!E44 -> 28.55216896 | G87: 3.351732904 | H87: 430573.8608 | J87: Regression | K87: 2 | L87: 5.508526362 | M87: 2.754263181 | N87: 260.8520109 | O87: 5.394943518e-10
A88: 4 | B88: ='Footage & Cost Per Foot'!C45 -> 227784.48 | C88: P | D88: 4 | E88: 1 | F88: ='Footage & Cost Per Foot'!E45 -> 32.45420621 | G88: 3.479830056 | H88: 7755459.405 | J88: Residual | K88: 11 | L88: 0.1161459131 | M88: 0.01055871937
A89: 6 | B89: ='Footage & Cost Per Foot'!C46 -> 84342.72 | C89: P | D89: 6 | E89: 1 | F89: ='Footage & Cost Per Foot'!E46 -> 46.5468386 | G89: 3.840459087 | H89: 3673570.097 | J89: Total | K89: 13 | L89: 5.624672275
A90: 8 | B90: ='Footage & Cost Per Foot'!C47 -> 1351.68 | C90: P | D90: 8 | E90: 1 | F90: ='Footage & Cost Per Foot'!E47 -> 65.11213967 | G90: 4.176111009 | H90: 75313.34664
A91: Total | B91: =SUM(B77:B90) -> 734279.04 | H91: =SUM(H77:H90) -> 33059017.04 | K91: Coefficients | L91: Standard Error | M91: t Stat | N91: P-value | O91: Lower 95% | P91: Upper 95%
A92: CK | B92: ='Footage & Cost Per Foot'!B54+'Footage & Cost Per Foot'!C54 -> 734279.04 | J92: Intercept | K92: 3.50654103 | L92: 0.05739128683 | M92: 61.09883963 | N92: 2.793807701e-15 | O92: 3.38022366 | P92: 3.632858401
B93: =B92-B91 -> 0 | J93: Size | K93: 0.1231391768 | L93: 0.006835202793 | M93: 18.01543868 | N93: 1.634746528e-09 | O93: 0.1080949969 | P93: 0.1381833567
J94: Plastic | K94: -0.4713453424 | L94: 0.05806570818 | M94: -8.117447581 | N94: 5.685402047e-06 | O94: -0.5991471044 | P94: -0.3435435804
J96: Zero-Inch Study:
K97: Zero-Inch | M97: Zero-Inch | N97: Configured | O97: Customer
K98: Cost/Ft | L98: Footage | M98: Total Cost | N98: Cost | O98: Portion
J99: Plastic | K99: =EXP(K92+K93*0+K94*1) -> 20.8050488 | L99: =SUM(B85:B90) -> 477312 | M99: =K99*L99 -> 9930499.451
J100: Steel | K100: =EXP(K92+K93*0+K94*0) -> 33.3327711 | L100: =SUM(B77:B84) -> 256967.04 | M100: =K100*L100 -> 8565423.525
M101: =M100+M99 -> 18495922.98 | N101: =H91 -> 33059017.04 | O101: =ROUND(M101/N101,4) -> 0.5595
J103: Minimum System Study:
K104: Two-Inch | L104: Two-Inch | M104: Configured | N104: Customer
K105: Cost/Ft | L105: Total Cost | M105: Cost | N105: Portion
J106: Plastic | K106: =F86 -> 23.85422958 | L106: =K106*L99 -> 11385910.03
J107: Steel | K107: =F78 -> 40.86579017 | L107: =K107*L100 -> 10501161.14
L108: =SUM(L106:L107) -> 21887071.17 | M108: =N101 -> 33059017.04 | N108: =L108/M108 -> 0.6620605549
M109: w/Actual Cost | N109: =L108/SUMPRODUCT(F77:F90,B77:B90) -> 0.6546665575
A111: RGVSA
A112: Size | B112: Footage | C112: Composition | D112: Size | E112: Plastic | F112: Cost/Ft | G112: LN(Cost/Ft) | H112: Configured Cost | J112: SUMMARY OUTPUT
A113: 1 | B113: ='Footage & Cost Per Foot'!C60 -> 137037.12 | C113: P | D113: 1 | E113: 1 | F113: ='Footage & Cost Per Foot'!E60 -> 15.4756976 | G113: =LN(F113) -> 2.739270897 | H113: =EXP($K$128+$K$129*D113+$K$130*E113)*B113 -> 2018043.121
A114: 2 | B114: ='Footage & Cost Per Foot'!C61 -> 3900895.68 | C114: P | D114: 2 | E114: 1 | F114: ='Footage & Cost Per Foot'!E61 -> 15.65128928 | G114: =LN(F114) -> 2.750553296 | H114: =EXP($K$128+$K$129*D114+$K$130*E114)*B114 -> 67441301.06 | J114: Regression Statistics
A115: 3 | B115: ='Footage & Cost Per Foot'!C62 -> 279.84 | C115: P | D115: 3 | E115: 1 | F115: ='Footage & Cost Per Foot'!E62 -> 21.23621101 | G115: 3.055707791 | H115: 5679.901187 | J115: Multiple R | K115: 0.9960698415
A116: 4 | B116: ='Footage & Cost Per Foot'!C63 -> 432326.4 | C116: P | D116: 4 | E116: 1 | F116: ='Footage & Cost Per Foot'!E63 -> 23.56117487 | G116: 3.159600225 | H116: 10301776.64 | J116: R Square | K116: 0.9921551292
A117: 6 | B117: ='Footage & Cost Per Foot'!C64 -> 83793.6 | C117: P | D117: 6 | E117: 1 | F117: ='Footage & Cost Per Foot'!E64 -> 33.36952293 | G117: 3.507642996 | H117: 2752009.896 | J117: Adjusted R Square | K117: 0.990586155
A118: 1 | B118: ='Footage & Cost Per Foot'!B60 -> 108704.64 | C118: S | D118: 1 | E118: 0 | F118: ='Footage & Cost Per Foot'!D60 -> 30.15701881 | G118: 3.406417692 | H118: 3406231.792 | J118: Standard Error | K118: 0.07633158466
A119: 2 | B119: ='Footage & Cost Per Foot'!B61 -> 4532241.12 | C119: S | D119: 2 | E119: 0 | F119: ='Footage & Cost Per Foot'!D61 -> 38.32544208 | G119: 3.64611396 | H119: 166727987.2 | J119: Observations | K119: 13
A120: 3 | B120: ='Footage & Cost Per Foot'!B62 -> 305812.32 | C120: S | D120: 3 | E120: 0 | F120: ='Footage & Cost Per Foot'!D62 -> 47.34973215 | G120: 3.857561163 | H120: 13207476.99
A121: 4 | B121: ='Footage & Cost Per Foot'!B63 -> 1929475.68 | C121: S | D121: 4 | E121: 0 | F121: ='Footage & Cost Per Foot'!D63 -> 48.46846554 | G121: 3.880913391 | H121: 97830343.55 | J121: ANOVA
A122: 6 | B122: ='Footage & Cost Per Foot'!B64 -> 413682.72 | C122: S | D122: 6 | E122: 0 | F122: ='Footage & Cost Per Foot'!D64 -> 68.75772311 | G122: 4.230589066 | H122: 28909489.26 | K122: df | L122: SS | M122: MS | N122: F | O122: Significance F
A123: 8 | B123: ='Footage & Cost Per Foot'!B65 -> 197229.12 | C123: S | D123: 8 | E123: 0 | F123: ='Footage & Cost Per Foot'!D65 -> 94.83250082 | G123: 4.552112186 | H123: 18996904.74 | J123: Regression | K123: 2 | L123: 7.368894566 | M123: 3.684447283 | N123: 632.3591252 | O123: 2.971180124e-11
A124: 10 | B124: ='Footage & Cost Per Foot'!B66 -> 94063.2 | C124: S | D124: 10 | E124: 0 | F124: ='Footage & Cost Per Foot'!D66 -> 116.6108296 | G124: 4.758842148 | H124: 12487351.21 | J124: Residual | K124: 10 | L124: 0.05826510816 | M124: 0.005826510816
A125: 12 | B125: ='Footage & Cost Per Foot'!B67 -> 286186.56 | C125: S | D125: 12 | E125: 0 | F125: ='Footage & Cost Per Foot'!D67 -> 204.6329613 | G125: 5.321217942 | H125: 52364695.29 | J125: Total | K125: 12 | L125: 7.427159674
A126: Total | B126: =SUM(B113:B125) -> 12421728 | H126: =SUM(H113:H125) -> 476449290.7
A127: CK | B127: ='Footage & Cost Per Foot'!B71+'Footage & Cost Per Foot'!C71 -> 12421728 | K127: Coefficients | L127: Standard Error | M127: t Stat | N127: P-value | O127: Lower 95% | P127: Upper 95%
B128: =B127-B126 -> 0 | J128: Intercept | K128: 3.284307747 | L128: 0.04772949604 | M128: 68.81086162 | N128: 1.02407346e-14 | O128: 3.177959803 | P128: 3.390655692
J129: Size | K129: 0.1604196864 | L129: 0.006846501603 | M129: 23.43089882 | N129: 4.542310396e-10 | O129: 0.1451647301 | P129: 0.1756746426
J130: Plastic | K130: -0.7550957025 | L130: 0.04688729038 | M130: -16.10448581 | N130: 1.763228824e-08 | O130: -0.8595670959 | P130: -0.6506243092
J132: Zero-Inch Study:
K133: Zero-Inch | M133: Zero-Inch | N133: Configured | O133: Customer
K134: Cost/Ft | L134: Footage | M134: Total Cost | N134: Cost | O134: Portion
J135: Plastic | K135: =EXP(K128+K129*0+K130*1) -> 12.54361843 | L135: =SUM(B113:B117) -> 4554332.64 | M135: =K135*L135 -> 57127810.84
J136: Steel | K136: =EXP(K128+K129*0+K130*0) -> 26.69050134 | L136: =SUM(B118:B125) -> 7867395.36 | M136: =K136*L136 -> 209984726.4
M137: =M136+M135 -> 267112537.2 | N137: =H126 -> 476449290.7 | O137: =ROUND(M137/N137,4) -> 0.5606
J139: Minimum System Study:
K140: Two-Inch | L140: Two-Inch | M140: Configured | N140: Customer
K141: Cost/Ft | L141: Total Cost | M141: Cost | N141: Portion
J142: Plastic | K142: =F114 -> 15.65128928 | L142: =K142*L135 -> 71281177.62
J143: Steel | K143: =F119 -> 38.32544208 | L143: =K143*L136 -> 301521405.2
L144: =SUM(L142:L143) -> 372802582.8 | M144: =N137 -> 476449290.7 | N144: =L144/M144 -> 0.7824601487
M145: w/Actual Cost | N145: =L144/SUMPRODUCT(F113:F125,B113:B125) -> 0.7802158238

Sheet Footage & Cost Per Foot
A1: CGSA
B2: Mains Footage | I2: Cost per Foot | S2: Mains Footage
B3: Austin | E3: STX | G3: Galveston & Port Arthur | I3: Austin | L3: STX | N3: Galv&Port Arthur | P3: CGSA | S3: CGSA
A4: Size | B4: Steel | C4: Wrought Iron | D4: Plastic | E4: Steel | F4: Plastic | G4: Steel | H4: Plastic | I4: Steel | J4: Wrought Iron | K4: Plastic | L4: Steel | M4: Plastic | N4: Steel | O4: Plastic | P4: Steel | Q4: Wrought Iron | R4: Plastic | S4: Steel | T4: Wrought Iron | U4: Plastic | V4: Total
A5: 1 | B5: =+Footage!L5*5280 -> 142982.4 | C5: =+Footage!L8*5280 -> 58.08 | D5: =Footage!L10*5280 -> 123874.08 | E5: =+Footage!L20*5280 -> 19694.4 | F5: =+Footage!L25*5280 -> 32788.8 | G5: =(+Footage!L35+Footage!L50)*5280 -> 96518.4 | H5: =+(Footage!L40+Footage!L55)*5280 -> 47678.4 | I5: ='Per Ft Cost_CTX'!K6 -> 41.87744872 | J5: ='Per Ft Cost_CTX'!K26 -> 41.87744872 | K5: ='Per Ft Cost_CTX'!K18 -> 25.40534342 | L5: ='Per Ft Cost_STX'!K12 -> 26.45262923 | M5: ='Per Ft Cost_STX'!K6 -> 18.83123717 | N5: ='Per Ft Cost_PA&G'!K14 -> 33.81389382 | O5: ='Per Ft Cost_PA&G'!K6 -> 17.40034342 | P5: =+(B5*I5+E5*L5+G5*N5)/(B5+E5+G5) -> 37.70274185 | Q5: =J5 -> 41.87744872 | R5: =+(D5*K5+F5*M5+H5*O5)/(D5+F5+H5) -> 22.48267089 | S5: =+B5+E5+G5 -> 259195.2 | T5: =C5 -> 58.08 | U5: =+D5+F5+H5 -> 204341.28 | V5: =SUM(S5:U5) -> 463594.56
A6: 2 | B6: =+Footage!M5*5280 -> 4152720 | C6: =+Footage!M8*5280 -> 3447.84 | D6: =+Footage!M10*5280 -> 4548667.2 | E6: =+Footage!M20*5280 -> 682070.4 | F6: =+Footage!M25*5280 -> 481884.48 | G6: =(Footage!M35+Footage!M50)*5280 -> 1647782.4 | H6: =+(Footage!M40+Footage!M55)*5280 -> 1133220 | I6: ='Per Ft Cost_CTX'!K7 -> 49.68152322 | J6: ='Per Ft Cost_CTX'!K27 -> 49.68152322 | K6: ='Per Ft Cost_CTX'!K19 -> 26.0069075 | L6: ='Per Ft Cost_STX'!K13 -> 32.15935871 | M6: ='Per Ft Cost_STX'!K7 -> 19.43280125 | N6: ='Per Ft Cost_PA&G'!K15 -> 39.52062329 | O6: ='Per Ft Cost_PA&G'!K7 -> 18.0019075 | P6: =+(B6*I6+E6*L6+G6*N6)/(B6+E6+G6) -> 45.25514766 | Q6: 49.68152322 | R6: =+(D6*K6+F6*M6+H6*O6)/(D6+F6+H6) -> 24.02121002 | S6: =+B6+E6+G6 -> 6482572.8 | T6: 3447.84 | U6: =+D6+F6+H6 -> 6163771.68 | V6: =SUM(S6:U6) -> 12649792.32
A7: 3 | B7: =+Footage!N5*5280 -> 3326.4 | C7: =+Footage!N8*5280 -> 2402.4 | D7: =+Footage!N10*5280 -> 184377.6 | E7: =+Footage!N20*5280 -> 28781.28 | F7: =+Footage!N25*5280 -> 6800.64 | G7: =(+Footage!N35+Footage!N50)*5280 -> 97035.84 | H7: =(Footage!N40+Footage!N55)*5280 -> 132 | I7: ='Per Ft Cost_CTX'!K8 -> 55.55877254 | J7: ='Per Ft Cost_CTX'!K28 -> 55.55877254 | K7: ='Per Ft Cost_CTX'!K20 -> 30.44001479 | L7: ='Per Ft Cost_STX'!K14 -> 42.79614422 | M7: ='Per Ft Cost_STX'!K8 -> 22.06745188 | N7: ='Per Ft Cost_PA&G'!K16 -> 53.7516538 | O7: ='Per Ft Cost_PA&G'!K8 -> 22.76855646 | P7: 51.35662547 | Q7: 55.55877254 | R7: 30.13709625 | S7: 129143.52 | T7: 2402.4 | U7: 191310.24 | V7: 322856.16
A8: 4 | B8: =+Footage!O5*5280 -> 1629777.6 | C8: =+Footage!O8*5280 -> 88202.4 | D8: =+Footage!O10*5280 -> 1599026.88 | E8: =+Footage!O20*5280 -> 312312 | F8: =+Footage!O25*5280 -> 117965.76 | G8: =(+Footage!O35+Footage!O50)*5280 -> 543734.4 | H8: =+(Footage!O40+Footage!O55)*5280 -> 367329.6 | I8: ='Per Ft Cost_CTX'!K9 -> 51.55918436 | J8: ='Per Ft Cost_CTX'!K29 -> 51.55918436 | K8: ='Per Ft Cost_CTX'!K21 -> 33.74048797 | L8: ='Per Ft Cost_STX'!K15 -> 42.1132877 | M8: ='Per Ft Cost_STX'!K9 -> 25.36792505 | N8: ='Per Ft Cost_PA&G'!K17 -> 53.06879728 | O8: ='Per Ft Cost_PA&G'!K9 -> 26.06902963 | P8: 50.70263201 | Q8: 51.55918436 | R8: 31.9146525 | S8: 2485824 | T8: 88202.4 | U8: 2084322.24 | V8: 4658348.64
A9: 6 | B9: =+Footage!P5*5280 -> 1322640 | C9: =+Footage!P8*5280 -> 2481.6 | D9: =+Footage!P10*5280 -> 1201173.6 | E9: =+Footage!P20*5280 -> 460178.4 | F9: =+Footage!P25*5280 -> 10744.8 | G9: =+(Footage!P35+Footage!P50)*5280 -> 172946.4 | H9: =+(Footage!P40+Footage!P55)*5280 -> 54188.64 | I9: ='Per Ft Cost_CTX'!K10 -> 63.49366709 | J9: ='Per Ft Cost_CTX'!K30 -> 63.49366709 | K9: ='Per Ft Cost_CTX'!K22 -> 43.89156009 | L9: ='Per Ft Cost_STX'!K16 -> 58.94423213 | M9: ='Per Ft Cost_STX'!K10 -> 35.59971426 | N9: ='Per Ft Cost_PA&G'!K18 -> 76.60259505 | O9: ='Per Ft Cost_PA&G'!K10 -> 35.41960176 | P9: 63.58242531 | Q9: 63.49366709 | R9: 43.4585966 | S9: 1955764.8 | T9: 2481.6 | U9: 1266107.04 | V9: 3224353.44
A10: 8 | B10: =+Footage!Q5*5280 -> 320802.24 | C10: =+Footage!Q8*5280 -> 0 | D10: =+Footage!Q10*5280 -> 62451.84 | E10: =+Footage!Q20*5280 -> 5264.16 | F10: 0 | G10: =+(Footage!Q35+Footage!Q50)*5280 -> 62589.12 | H10: =+(Footage!Q40+Footage!Q55)*5280 -> 18363.84 | I10: ='Per Ft Cost_CTX'!K11 -> 78.85512367 | J10: 0 | K10: ='Per Ft Cost_CTX'!K23 -> 58.20982842 | L10: ='Per Ft Cost_STX'!K17 -> 77.46718341 | M10: 0 | N10: ='Per Ft Cost_PA&G'!K19 -> 111.589163 | O10: ='Per Ft Cost_PA&G'!K11 -> 50.07141175 | P10: 84.1078173 | Q10: 0 | R10: 56.36052663 | S10: 388655.52 | T10: 0 | U10: 80815.68 | V10: 469471.2
A11: 10 | B11: =+Footage!R5*5280 -> 83915.04 | C11: 0 | D11: 0 | E11: 0 | F11: 0 | G11: =(Footage!R35+Footage!R50)*5280 -> 66073.92 | H11: 0 | I11: ='Per Ft Cost_CTX'!K12 -> 113.1344232 | J11: 0 | K11: 0 | L11: 0 | M11: 0 | N11: ='Per Ft Cost_PA&G'!K20 -> 141.9017799 | O11: 0 | P11: 125.8071694 | Q11: 0 | R11: 0 | S11: 149988.96 | T11: 0 | U11: 0 | V11: 149988.96
A12: 12 | B12: =+Footage!S5*5280 -> 292897.44 | C12: 0 | D12: =+Footage!S10*5280 -> 2138.4 | E12: 0 | F12: 0 | G12: 0 | H12: 0 | I12: ='Per Ft Cost_CTX'!K13 -> 129.6765372 | J12: 0 | K12: ='Per Ft Cost_CTX'!K24 -> 116.48617 | L12: 0 | M12: 0 | N12: ='Per Ft Cost_PA&G'!K21 -> 172.690746 | O12: 0 | P12: 129.6765372 | Q12: 0 | R12: 116.48617 | S12: 292897.44 | T12: 0 | U12: 2138.4 | V12: 295035.84
A13: 14 | B13: =+Footage!T5*5280 -> 913.44 | C13: 0 | D13: 0 | E13: 0 | F13: 0 | G13: =Footage!S35*5280 -> 20724 | H13: 0 | I13: ='Per Ft Cost_CTX'!K14 -> 205.8861868 | J13: 0 | K13: 0 | L13: 0 | M13: 0 | N13: ='Per Ft Cost_PA&G'!K22 -> 207.8207285 | O13: 0 | P13: 207.7390604 | Q13: 0 | R13: 0 | S13: 21637.44 | T13: 0 | U13: 0 | V13: 21637.44
A14: 16 | B14: =+Footage!U5*5280 -> 47023.68 | C14: 0 | D14: 0 | E14: 0 | F14: 0 | G14: 0 | H14: 0 | I14: ='Per Ft Cost_CTX'!K15 -> 191.0747038 | J14: 0 | K14: 0 | L14: 0 | M14: 0 | N14: 0 | O14: 0 | P14: 191.0747038 | Q14: 0 | R14: 0 | S14: 47023.68 | T14: 0 | U14: 0 | V14: 47023.68
A15: 20 | B15: =+Footage!V5*5280 -> 21426.24 | C15: 0 | D15: 0 | E15: 0 | F15: 0 | G15: 0 | H15: 0 | I15: ='Per Ft Cost_CTX'!K16 -> 300.8608606 | J15: 0 | K15: 0 | L15: 0 | M15: 0 | N15: 0 | O15: 0 | P15: 300.8608606 | Q15: 0 | R15: 0 | S15: 21426.24 | T15: 0 | U15: 0 | V15: 21426.24
B16: =SUM(B5:B15) -> 8018424.48 | C16: 96592.32 | D16: 7721709.6 | E16: 1508300.64 | F16: 650184.48 | G16: 2707404.48 | H16: 1620912.48 | S16: =SUM(S5:S15) -> 12234129.6 | T16: =SUM(T5:T15) -> 96592.32 | U16: =SUM(U5:U15) -> 9992806.56 | V16: =SUM(V5:V15) -> 22323528.48
A17: ck | B17: =Footage!W5*5280 -> 8018424.48 | C17: =Footage!W8*5280 -> 96592.32 | D17: =Footage!W10*5280 -> 7721709.6 | E17: =Footage!R20*5280 -> 1508300.64 | F17: =Footage!R25*5280 -> 650184.48 | G17: =(Footage!T35+Footage!S50)*5280 -> 2707404.48 | H17: =(Footage!T40+Footage!S55)*5280 -> 1620912.48 | S17: =B16+E16+G16+I16 -> 12234129.6 | T17: =C16 -> 96592.32 | U17: =D16+F16+H16+J16 -> 9992806.56 | V17: =SUM(B16:J16) -> 22323528.48
B18: =B17-B16 -> 0 | C18: =C17-C16 -> 0 | D18: 0 | E18: 0 | F18: 0 | G18: 0 | H18: 0 | S18: =S17-S16 -> 0 | T18: =T17-T16 -> 0 | U18: 0 | V18: 0
A19: WNSA
B20: Mains Footage | H20: Cost per Foot | P20: Mains Footage
B21: WTX & Dell City | D21: Permian | F21: Borger & NTX | H21: El Paso & Dell City | J21: Permian | L21: Borger & NTX | N21: West North | P21: West North
A22: Size | B22: Steel | C22: Plastic | D22: Steel | E22: Plastic | F22: Steel | G22: Plastic | H22: Steel | I22: Plastic | J22: Steel | K22: Plastic | L22: Steel | M22: Plastic | N22: Steel | O22: Plastic | P22: Steel | Q22: Plastic | R22: Total
A23: 1 | B23: =Footage!L65*5280 -> 76824 | C23: =(Footage!L69+Footage!L70+Footage!L71)*5280 -> 27561.6 | D23: =Footage!L97*5280 -> 61353.6 | E23: =Footage!L102*5280 -> 17846.4 | F23: =(Footage!L113+Footage!L129)*5280 -> 72705.6 | G23: =(Footage!L118+Footage!L133+Footage!L134)*5280 -> 53164.32 | H23: ='Per Ft Cost WTX'!K14 -> 35.09402673 | I23: ='Per Ft Cost WTX'!K6 -> 23.25266551 | J23: ='Per Ft Cost_Permian'!K12 -> 31.1088709 | K23: ='Per Ft Cost_Permian'!K6 -> 25.20855384 | L23: ='Per Ft Cost_NTX & Borger '!K13 -> 56.77490215 | M23: ='Per Ft Cost_NTX & Borger '!K6 -> 31.12891842 | N23: =(B23*H23+D23*J23+F23*L23)/(B23+D23+F23) -> 41.40945347 | O23: =(C23*I23+E23*K23+G23*M23)/(C23+E23+G23) -> 27.85478095 | P23: =B23+D23+F23 -> 210883.2 | Q23: =C23+E23+G23 -> 98572.32 | R23: =SUM(P23:Q23) -> 309455.52
A24: 2 | B24: =Footage!M65*5280 -> 4713350.4 | C24: =(Footage!M69+Footage!M70+Footage!M71)*5280 -> 7775005.92 | D24: =Footage!M97*5280 -> 813912 | E24: =(Footage!M102+Footage!M103)*5280 -> 342730.08 | F24: =(Footage!M113+Footage!M129)*5280 -> 897367.68 | G24: =(Footage!M118+Footage!M133+Footage!M134+Footage!M135)*5280 -> 1119967.2 | H24: ='Per Ft Cost WTX'!K15 -> 40.86579017 | I24: ='Per Ft Cost WTX'!K7 -> 23.85422958 | J24: ='Per Ft Cost_Permian'!K13 -> 36.81560038 | K24: ='Per Ft Cost_Permian'!K7 -> 25.81011791 | L24: ='Per Ft Cost_NTX & Borger '!K14 -> 62.48163163 | M24: ='Per Ft Cost_NTX & Borger '!K7 -> 31.7304825 | N24: =(B24*H24+D24*J24+F24*L24)/(B24+D24+F24) -> 43.3719048 | O24: =(C24*I24+E24*K24+G24*M24)/(C24+E24+G24) -> 24.88170216 | P24: =B24+D24+F24 -> 6424630.08 | Q24: =C24+E24+G24 -> 9237703.2 | R24: =SUM(P24:Q24) -> 15662333.28
A25: 3 | B25: =Footage!N65*5280 -> 43929.6 | C25: =(Footage!N69+Footage!N70+Footage!N71)*5280 -> 633.6 | D25: =Footage!N97*5280 -> 90816 | E25: =Footage!N102*5280 -> 26289.12 | F25: =(Footage!N113+Footage!N129)*5280 -> 90076.8 | G25: =(Footage!N118+Footage!N133+Footage!N134)*5280 -> 147216.96 | H25: ='Per Ft Cost WTX'!K16 -> 53.63624838 | I25: ='Per Ft Cost WTX'!K8 -> 28.55216896 | J25: ='Per Ft Cost_Permian'!K14 -> 52.82107255 | K25: ='Per Ft Cost_Permian'!K8 -> 34.49921688 | L25: ='Per Ft Cost_NTX & Borger '!K15 -> 81.47563713 | M25: ='Per Ft Cost_NTX & Borger '!K8 -> 37.39102313 | N25: 64.46102405 | O25: 36.92229975 | P25: 224822.4 | Q25: 174139.68 | R25: 398962.08
A26: 4 | B26: =Footage!O65*5280 -> 1731681.6 | C26: =(Footage!O69+Footage!O70+Footage!O71)*5280 -> 1466768.16 | D26: =Footage!O97*5280 -> 213364.8 | E26: =Footage!O102*5280 -> 84659.52 | F26: =(Footage!O113+Footage!O129)*5280 -> 529029.6 | G26: =(Footage!O118+Footage!O133+Footage!O134)*5280 -> 819656.64 | H26: ='Per Ft Cost WTX'!K17 -> 53.08345977 | I26: ='Per Ft Cost WTX'!K9 -> 32.45420621 | J26: ='Per Ft Cost_Permian'!K15 -> 52.13821603 | K26: ='Per Ft Cost_Permian'!K9 -> 37.79969005 | L26: ='Per Ft Cost_NTX & Borger '!K16 -> 80.79278061 | M26: ='Per Ft Cost_NTX & Borger '!K9 -> 40.6914963 | N26: 58.92700265 | O26: 35.49260326 | P26: 2474076 | Q26: 2371084.32 | R26: 4845160.32
A27: 6 | B27: =Footage!P65*5280 -> 443905.44 | C27: =(Footage!P69+Footage!P70+Footage!P71)*5280 -> 689684.16 | D27: =Footage!P97*5280 -> 211147.2 | E27: =Footage!P102*5280 -> 58344 | F27: =(Footage!P113+Footage!P129)*5280 -> 186806.4 | G27: =(Footage!P118+Footage!P134)*5280 -> 128050.56 | H27: ='Per Ft Cost WTX'!K18 -> 77.65356149 | I27: ='Per Ft Cost WTX'!K10 -> 46.5468386 | J27: ='Per Ft Cost_Permian'!K16 -> 67.4268638 | K27: ='Per Ft Cost_Permian'!K10 -> 46.85674551 | L27: ='Per Ft Cost_NTX & Borger '!K17 -> 126.3136451 | M27: ='Per Ft Cost_NTX & Borger '!K10 -> 62.08959342 | N27: 85.8861469 | O27: 48.83925779 | P27: 841859.04 | Q27: 876078.72 | R27: 1717937.76
A28: 8 | B28: =Footage!Q65*5280 -> 71876.64 | C28: =(Footage!Q69+Footage!Q70+Footage!Q71)*5280 -> 54389.28 | D28: 0 | E28: 0 | F28: =(Footage!Q113+Footage!Q129)*5280 -> 25396.8 | G28: =Footage!Q134*5280 -> 1584 | H28: ='Per Ft Cost WTX'!K19 -> 102.1425959 | I28: ='Per Ft Cost WTX'!K11 -> 65.11213967 | J28: ='Per Ft Cost_Permian'!K17 -> 0 | K28: 0 | L28: ='Per Ft Cost_NTX & Borger '!K18 -> 177.230163 | M28: ='Per Ft Cost_NTX & Borger '!K11 -> 97.24754509 | N28: 121.7469599 | O28: 66.02154648 | P28: 97273.44 | Q28: 55973.28 | R28: 153246.72
A29: 10 | B29: =Footage!R65*5280 -> 12951.84 | C29: =(Footage!R69+Footage!R70+Footage!R71)*5280 -> 6695.04 | D29: 0 | E29: 0 | F29: =Footage!R129*5280 -> 1705.44 | G29: 0 | H29: ='Per Ft Cost WTX'!K20 -> 129.9776653 | I29: ='Per Ft Cost WTX'!K12 -> 86.58771018 | J29: 0 | K29: 0 | L29: ='Per Ft Cost_NTX & Borger '!K19 -> 234.1460632 | M29: 0 | N29: 142.0981237 | O29: 86.58771018 | P29: 14657.28 | Q29: 6695.04 | R29: 21352.32
A30: 12 | B30: =Footage!S65*5280 -> 9921.12 | C30: 0 | D30: 0 | E30: 0 | F30: 0 | G30: 0 | H30: ='Per Ft Cost WTX'!K21 -> 210.663259 | I30: 0 | J30: 0 | K30: 0 | L30: 0 | M30: 0 | N30: 210.663259 | O30: 0 | P30: 9921.12 | Q30: 0 | R30: 9921.12
A31: 14 | B31: 0 | C31: 0 | D31: 0 | E31: 0 | F31: 0 | G31: 0 | H31: 0 | I31: 0 | J31: 0 | K31: 0 | L31: 0 | M31: 0 | O31: 0 | P31: 0 | Q31: 0 | R31: 0
A32: 16 | B32: =Footage!U65*5280 -> 122295.36 | C32: 0 | D32: 0 | E32: 0 | F32: 0 | G32: 0 | H32: ='Per Ft Cost WTX'!K22 -> 218.5819117 | I32: 0 | J32: 0 | K32: 0 | L32: 0 | M32: 0 | N32: 218.5819117 | O32: 0 | P32: 122295.36 | Q32: 0 | R32: 122295.36
A33: 20 | B33: 0 | C33: 0 | D33: 0 | E33: 0 | F33: 0 | G33: 0 | H33: 0 | I33: 0 | J33: ='Per Ft Cost_Permian'!K18 -> 0 | K33: 0 | L33: 0 | M33: 0 | O33: 0 | P33: 0 | Q33: 0 | R33: 0
B34: =SUM(B23:B33) -> 7226736 | C34: =SUM(C23:C33) -> 10020737.76 | D34: 1390593.6 | E34: 529869.12 | F34: =SUM(F23:F33) -> 1803088.32 | G34: =SUM(G23:G33) -> 2269639.68 | P34: =SUM(P23:P33) -> 10420417.92 | Q34: =SUM(Q23:Q33) -> 12820246.56 | R34: 23240664.48
A35: ck | B35: =Footage!W65*5280 -> 7226736 | C35: =(Footage!W69+Footage!W70+Footage!W71)*5280 -> 10020737.76 | D35: =(Footage!W97*5280) -> 1390593.6 | E35: =(Footage!W102+Footage!W103)*5280 -> 529869.12 | F35: =(Footage!W113+Footage!W129)*5280 -> 1803088.32 | G35: =(Footage!W118+Footage!W133+Footage!W134+Footage!W135)*5280 -> 2269639.68 | P35: =B34+D34+F34+H34 -> 10420417.92 | Q35: =C34+E34+G34+I34 -> 12820246.56 | R35: =SUM(B34:E34)+SUM(F34:I34) -> 23240664.48
B36: =B35-B34 -> 0 | C36: =C35-C34 -> 0 | D36: 0 | E36: 0 | F36: 0 | G36: 0 | P36: =P35-P34 -> 0 | Q36: =Q35-Q34 -> 0 | R36: =R35-R34 -> 0
B39: Fort Bliss
B40: Mains Footage | D40: Cost per Foot
A41: Size | B41: Steel | C41: Plastic | D41: Steel | E41: Plastic
A42: 1 | B42: =Footage!L81*5280 -> 8606.4 | C42: =Footage!L86*5280 -> 6072 | D42: =H23 -> 35.09402673 | E42: 23.25266551
A43: 2 | B43: =Footage!M81*5280 -> 86222.4 | C43: =Footage!M86*5280 -> 143457.6 | D43: 40.86579017 | E43: 23.85422958
A44: 3 | B44: =Footage!N81*5280 -> 14625.6 | C44: =Footage!N86*5280 -> 14303.52 | D44: 53.63624838 | E44: 28.55216896
A45: 4 | B45: =Footage!O81*5280 -> 73180.8 | C45: =(Footage!O85+Footage!O86)*5280 -> 227784.48 | D45: 53.08345977 | E45: 32.45420621
A46: 6 | B46: =Footage!P81*5280 -> 24921.6 | C46: =Footage!P86*5280 -> 84342.72 | D46: 77.65356149 | E46: 46.5468386
A47: 8 | B47: =Footage!Q81*5280 -> 26452.8 | C47: =Footage!Q86*5280 -> 1351.68 | D47: 102.1425959 | E47: 65.11213967
A48: 10 | B48: 0 | C48: 0 | D48: 0 | E48: ='Per Ft Cost WTX'!K28 -> 0
A49: 12 | B49: =Footage!S81*5280 -> 12091.2 | C49: 0 | D49: =H30 -> 210.663259 | E49: 0
A50: 14 | B50: 0 | C50: 0 | D50: 0 | E50: 0
A51: 16 | B51: =Footage!U81*5280 -> 10866.24 | C51: 0 | D51: =H32 -> 218.5819117 | E51: 0
A52: 20 | B52: 0 | C52: 0 | D52: 0 | E52: 0
B53: =SUM(B42:B52) -> 256967.04 | C53: =SUM(C42:C52) -> 477312
A54: ck | B54: =Footage!W81*5280 -> 256967.04 | C54: =(Footage!W85+Footage!W86)*5280 -> 477312
B57: RGV
B58: Mains Footage | D58: Cost per Foot
A59: Size | B59: Steel | C59: Plastic | D59: Steel | E59: Plastic
A60: 1 | B60: =Footage!L145*5280 -> 108704.64 | C60: =Footage!L150*5280 -> 137037.12 | D60: ='Per Ft Cost_RGV'!K12 -> 30.15701881 | E60: ='Per Ft Cost_RGV'!K6 -> 15.4756976
A61: 2 | B61: =Footage!M145*5280 -> 4532241.12 | C61: =Footage!M150*5280 -> 3900895.68 | D61: ='Per Ft Cost_RGV'!K13 -> 38.32544208 | E61: ='Per Ft Cost_RGV'!K7 -> 15.65128928
A62: 3 | B62: =Footage!N145*5280 -> 305812.32 | C62: =Footage!N150*5280 -> 279.84 | D62: ='Per Ft Cost_RGV'!K14 -> 47.34973215 | E62: ='Per Ft Cost_RGV'!K8 -> 21.23621101
A63: 4 | B63: =Footage!O145*5280 -> 1929475.68 | C63: =Footage!O150*5280 -> 432326.4 | D63: ='Per Ft Cost_RGV'!K15 -> 48.46846554 | E63: ='Per Ft Cost_RGV'!K9 -> 23.56117487
A64: 6 | B64: =Footage!P145*5280 -> 413682.72 | C64: =Footage!P150*5280 -> 83793.6 | D64: ='Per Ft Cost_RGV'!K16 -> 68.75772311 | E64: ='Per Ft Cost_RGV'!K10 -> 33.36952293
A65: 8 | B65: =Footage!Q145*5280 -> 197229.12 | C65: =(Footage!Q87+Footage!Q88+Footage!Q89)*5280 -> 0 | D65: ='Per Ft Cost_RGV'!K17 -> 94.83250082 | E65: 0
A66: 10 | B66: =Footage!R145*5280 -> 94063.2 | C66: =(Footage!R87+Footage!R88+Footage!R89)*5280 -> 0 | D66: ='Per Ft Cost_RGV'!K18 -> 116.6108296 | E66: 0
A67: 12 | B67: =Footage!S145*5280 -> 286186.56 | C67: 0 | D67: ='Per Ft Cost_RGV'!K19 -> 204.6329613 | E67: 0
A68: 14 | B68: 0 | C68: 0 | D68: 0 | E68: 0
A69: 16 | B69: =Footage!U83*5280 -> 0 | C69: 0 | D69: 0 | E69: 0
A70: 20 | B70: 0 | C70: 0 | D70: 0 | E70: 0
B71: =SUM(B60:B70) -> 7867395.36 | C71: =SUM(C60:C70) -> 4554332.64
A72: ck | B72: =(Footage!W145-Footage!V145)*5280 -> 7867395.36 | C72: =Footage!W150*5280 -> 4554332.64
B73: =B72-B71 -> 0 | C73: =C72-C71 -> 0

Sheet Footage
A1: CTX
A2: Miles of Mains in System at End of Year - 2023 DOT Report filed March 2024 | J2: MILES OF MAINS FOR RATES BY PIPE SIZE
D3: Over 2" | E3: Over 4" | F3: Over 8" | G3: Over 12" | J3: Material | K3: Unknown | L3: 1" | M3: 2" | N3: 3" | O3: 4" | P3: 6" | Q3: 8" | R3: 10" | S3: 12" | T3: 14" | U3: 16" | V3: 20" | W3: TOTAL
A4: Material | B4: Unknown | C4: 2" or less | D4: thru 4" | E4: thru 8" | F4: thru 12" | H4: TOTAL
A5: Steel | C5: 813.58 | D5: 309.25 | E5: 311.31 | F5: 71.37 | G5: 13.13 | H5: =SUM(B5:G5) -> 1518.64 | J5: Steel | L5: 27.08 | M5: 786.5 | N5: 0.63 | O5: 308.67 | P5: 250.5 | Q5: 60.758 | R5: 15.893 | S5: 55.473 | T5: 0.173 | U5: 8.906 | V5: 4.058 | W5: =SUM(K5:V5) -> 1518.641
A6: Ductile Iron | H6: =SUM(B6:G6) -> 0 | J6: Ductile Iron | W6: 0
A7: Copper | H7: 0 | J7: Copper | W7: 0
A8: Cast / Wrought Iron | C8: 0.66 | D8: 17.16 | E8: 0.47 | H8: 18.29 | J8: Cast / Wrought Iron | L8: 0.011 | M8: 0.653 | N8: 0.455 | O8: 16.705 | P8: 0.47 | W8: 18.294
A9: Plastic 1. PVC | H9: 0 | J9: Plastic 1. PVC | W9: 0
A10: Plastic 2. PE | C10: 884.95 | D10: 337.77 | E10: 239.32 | F10: 0.41 | H10: 1462.45 | J10: Plastic 2. PE | L10: 23.461 | M10: 861.49 | N10: 34.92 | O10: 302.846 | P10: 227.495 | Q10: 11.828 | S10: 0.405 | W10: 1462.445
A11: Plastic 3. ABS | H11: 0 | J11: Plastic 3. ABS | W11: 0
A12: Other Plastic | H12: 0 | J12: Other Plastic | W12: 0
A13: Other | H13: 0 | J13: Other | W13: 0
A14: System Totals | B14: =SUM(B5:B13) -> 0 | C14: 1699.19 | D14: 664.18 | E14: 551.1 | F14: 71.78 | G14: 13.13 | H14: 2999.38 | J14: System Totals | L14: =SUM(L5:L13) -> 50.552 | M14: =SUM(M5:M13) -> 1648.643 | N14: 36.005 | O14: 628.221 | P14: 478.465 | Q14: 72.586 | R14: 15.893 | S14: 55.878 | T14: 0.173 | U14: 8.906 | V14: 4.058 | W14: 2999.38
A16: STX
A17: Miles of Mains in System at End of Year - 2023 DOT Report filed March 2024 | J17: MILES OF MAINS FOR RATES BY PIPE SIZE
D18: Over 2" | E18: Over 4" | F18: Over 8" | G18: Over 12" | J18: Material | K18: Unknown | L18: 1" | M18: 2" | N18: 3" | O18: 4" | P18: 6" | Q18: 8" | R18: TOTAL
A19: Material | B19: Unknown | C19: 2" or less | D19: thru 4" | E19: thru 8" | F19: thru 12" | H19: TOTAL
A20: Steel | C20: 132.91 | D20: 64.6 | E20: 88.15 | H20: =SUM(B20:G20) -> 285.66 | J20: Steel | L20: 3.73 | M20: 129.18 | N20: 5.451 | O20: 59.15 | P20: 87.155 | Q20: 0.997 | R20: =SUM(K20:Q20) -> 285.663
A21: Ductile Iron | H21: =SUM(B21:G21) -> 0 | J21: Ductile Iron | R21: =SUM(K21:Q21) -> 0
A22: Copper | H22: 0 | J22: Copper | R22: 0
A23: Cast / Wrought Iron | H23: 0 | J23: Cast / Wrought Iron | R23: 0
A24: Plastic 1. PVC | H24: 0 | J24: Plastic 1. PVC | R24: 0
A25: Plastic 2. PE | C25: 97.47 | D25: 23.63 | E25: 2.04 | H25: 123.14 | J25: Plastic 2. PE | L25: 6.21 | M25: 91.266 | N25: 1.288 | O25: 22.342 | P25: 2.035 | R25: 123.141
A26: Plastic 3. ABS | H26: 0 | J26: Plastic 3. ABS | R26: 0
A27: Other Plastic | H27: 0 | J27: Other Plastic | R27: 0
A28: Other | H28: 0 | J28: Other | R28: 0
A29: System Totals | B29: =SUM(B20:B28) -> 0 | C29: 230.38 | D29: 88.23 | E29: 90.19 | F29: 0 | G29: 0 | H29: 408.8 | J29: System Totals | K29: =SUM(K20:K28) -> 0 | L29: =SUM(L20:L28) -> 9.94 | M29: 220.446 | N29: 6.739 | O29: 81.492 | P29: 89.19 | Q29: 0.997 | R29: 408.804
A31: Galveston
A32: Miles of Mains in System at End of Year - 2023 DOT Report filed March 2024 | J32: MILES OF MAINS FOR RATES BY PIPE SIZE
D33: Over 2" | E33: Over 4" | F33: Over 8" | G33: Over 12" | J33: Material | K33: Unknown | L33: 1" | M33: 2" | N33: 3" | O33: 4" | P33: 6" | Q33: 8" | R33: 10" | S33: 14" | T33: TOTAL
A34: Material | B34: Unknown | C34: 2" or less | D34: thru 4" | E34: thru 8" | F34: thru 12" | H34: TOTAL
A35: Steel | C35: 92.77 | D35: 34.28 | E35: 17.62 | G35: 3.93 | H35: =SUM(B35:G35) -> 148.6 | J35: Steel | L35: 9.04 | M35: 83.73 | N35: 3.17 | O35: 31.11 | P35: 12.73 | Q35: 4.896 | S35: 3.925 | T35: =SUM(K35:S35) -> 148.601
A36: Ductile Iron | H36: =SUM(B36:G36) -> 0 | J36: Ductile Iron | T36: 0
A37: Copper | H37: 0 | J37: Copper | T37: 0
A38: Cast / Wrought Iron | H38: 0 | J38: Cast / Wrought Iron | T38: 0
A39: Plastic 1. PVC | H39: 0 | J39: Plastic 1. PVC | T39: 0
A40: Plastic 2. PE | C40: 96.75 | D40: 11.09 | E40: 3.46 | H40: 111.3 | J40: Plastic 2. PE | L40: 8 | M40: 88.747 | O40: 11.093 | P40: 1.691 | Q40: 1.767 | T40: 111.298
A41: Plastic 3. ABS | H41: 0 | J41: Plastic 3. ABS | T41: 0
A42: Other Plastic | H42: 0 | J42: Other Plastic | T42: 0
A43: Other | H43: 0 | J43: Other | T43: 0
A44: System Totals | B44: =SUM(B35:B43) -> 0 | C44: 189.52 | D44: 45.37 | E44: 21.08 | F44: 0 | G44: 3.93 | H44: 259.9 | J44: System Totals | K44: =SUM(K35:K43) -> 0 | L44: =SUM(L35:L43) -> 17.04 | M44: 172.477 | N44: 3.17 | O44: 42.203 | P44: 14.421 | Q44: 6.663 | R44: 0 | S44: 3.925 | T44: 259.899
A46: Port Arthur
A47: Miles of Mains in System at End of Year - 2023 DOT Report filed March 2024 | J47: MILES OF MAINS FOR RATES BY PIPE SIZE
D48: Over 2" | E48: Over 4" | F48: Over 8" | G48: Over 12" | J48: Material | K48: Unknown | L48: 1" | M48: 2" | N48: 3" | O48: 4" | P48: 6" | Q48: 8" | R48: 10" | S48: TOTAL
A49: Material | B49: Unknown | C49: 2" or less | D49: thru 4" | E49: thru 8" | F49: thru 12" | H49: TOTAL
A50: Steel | C50: 237.6 | D50: 87.08 | E50: 26.98 | F50: 12.51 | H50: =SUM(C50:G50) -> 364.17 | J50: Steel | L50: 9.24 | M50: 228.35 | N50: 15.208 | O50: 71.87 | P50: 20.025 | Q50: 6.958 | R50: 12.514 | S50: =SUM(K50:R50) -> 364.165
A51: Ductile Iron | H51: 0 | J51: Ductile Iron | S51: =SUM(K51:R51) -> 0
A52: Copper | H52: 0 | J52: Copper | S52: 0
A53: Cast / Wrought Iron | H53: =SUM(C53:G53) -> 0 | J53: Cast / Wrought Iron | S53: 0
A54: Plastic 1. PVC | H54: 0 | J54: Plastic 1. PVC | S54: 0
A55: Plastic 2. PE | C55: 126.91 | D55: 58.5 | E55: 10.28 | H55: 195.69 | J55: Plastic 2. PE | L55: 1.03 | M55: 125.878 | N55: 0.025 | O55: 58.477 | P55: 8.572 | Q55: 1.711 | S55: 195.693
A56: Plastic 3. ABS | H56: 0 | J56: Plastic 3. ABS | S56: 0
A57: Other Plastic | H57: 0 | J57: Other Plastic | S57: 0
A58: Other | H58: 0 | J58: Other | S58: 0
A59: System Totals | B59: =SUM(B50:B58) -> 0 | C59: 364.51 | D59: 145.58 | E59: 37.26 | F59: 12.51 | G59: 0 | H59: 559.86 | J59: System Totals | K59: =SUM(K50:K58) -> 0 | L59: =SUM(L50:L58) -> 10.27 | M59: 354.228 | N59: 15.233 | O59: 130.347 | P59: 28.597 | Q59: 8.669 | R59: 12.514 | S59: 559.858
A61: WTX/Dell City
A62: Miles of Mains in System at End of Year - 2023 DOT Report filed March 2024 | J62: MILES OF MAINS FOR RATES BY PIPE SIZE
D63: Over 2" | E63: Over 4" | F63: Over 8" | G63: Over 12" | J63: Material | K63: Unknown | L63: 1" | M63: 2" | N63: 3" | O63: 4" | P63: 6" | Q63: 8" | R63: 10" | S63: 12" | T63: 14" | U63: 16" | V63: 20" | W63: TOTAL
A64: Material | B64: Unknown | C64: 2" or less | D64: thru 4" | E64: thru 8" | F64: thru 12" | H64: TOTAL
A65: Steel | C65: 907.23 | D65: 336.29 | E65: 97.686 | F65: 4.332 | G65: 23.162 | H65: =SUM(B65:G65) -> 1368.7 | J65: Steel | L65: 14.55 | M65: 892.68 | N65: 8.32 | O65: 327.97 | P65: 84.073 | Q65: 13.613 | R65: 2.453 | S65: 1.879 | U65: 23.162 | W65: =SUM(K65:V65) -> 1368.7
A66: Ductile Iron | H66: =SUM(B66:G66) -> 0 | J66: Ductile Iron | W66: =SUM(K66:V66) -> 0
A67: Copper | H67: 0 | J67: Copper | W67: 0
A68: Cast / Wrought Iron | H68: 0 | J68: Cast / Wrought Iron | W68: 0
A69: Plastic 1. PVC | C69: 41.31 | H69: 41.31 | J69: Plastic 1. PVC | L69: 0.02 | M69: 41.292 | W69: 41.312
A70: Plastic 2. PE | C70: 1434 | D70: 277.92 | E70: 140.92 | F70: 1.27 | H70: 1854.11 | J70: Plastic 2. PE | L70: 4.21 | M70: 1429.791 | N70: 0.12 | O70: 277.797 | P70: 130.622 | Q70: 10.301 | R70: 1.268 | W70: 1854.109
A71: Plastic 3. ABS | C71: 2.45 | H71: 2.45 | J71: Plastic 3. ABS | L71: 0.99 | M71: 1.456 | W71: 2.446
A72: Other Plastic | H72: 0 | J72: Other Plastic | W72: 0
A73: Other | H73: 0 | J73: Other | W73: 0
A74: System Totals | B74: =SUM(B65:B73) -> 0 | C74: 2384.99 | D74: 614.21 | E74: 238.606 | F74: 5.602 | G74: 23.162 | H74: 3266.57 | J74: System Totals | K74: =SUM(K65:K73) -> 0 | L74: =SUM(L65:L73) -> 19.77 | M74: 2365.219 | N74: 8.44 | O74: 605.767 | P74: 214.695 | Q74: 23.914 | R74: 3.721 | S74: 1.879 | T74: =SUM(T65:T73) -> 0 | U74: 23.162 | V74: 0 | W74: 3266.567
A77: Fort Bliss
A78: Miles of Mains in System at End of Year - 2023 DOT Report filed March 2024 | J78: MILES OF MAINS FOR RATES BY PIPE SIZE
D79: Over 2" | E79: Over 4" | F79: Over 8" | G79: Over 12" | J79: Material | K79: Unknown | L79: 1" | M79: 2" | N79: 3" | O79: 4" | P79: 6" | Q79: 8" | R79: 10" | S79: 12" | T79: 14" | U79: 16" | V79: 20" | W79: TOTAL
A80: Material | B80: Unknown | C80: 2" or less | D80: thru 4" | E80: thru 8" | F80: thru 12" | H80: TOTAL
A81: Steel | C81: 17.96 | D81: 16.63 | E81: 9.73 | F81: 2.29 | G81: 2.06 | H81: =SUM(B81:G81) -> 48.67 | J81: Steel | L81: 1.63 | M81: 16.33 | N81: 2.77 | O81: 13.86 | P81: 4.72 | Q81: 5.01 | S81: 2.29 | U81: 2.058 | W81: =SUM(K81:V81) -> 48.668
A82: Ductile Iron | H82: =SUM(B82:G82) -> 0 | J82: Ductile Iron | W82: =SUM(K82:V82) -> 0
A83: Copper | H83: 0 | J83: Copper | W83: 0
A84: Cast / Wrought Iron | H84: 0 | J84: Cast / Wrought Iron | W84: 0
A85: Plastic 1. PVC | D85: 0.14 | H85: 0.14 | J85: Plastic 1. PVC | O85: 0.136 | W85: 0.136
A86: Plastic 2. PE | C86: 28.32 | D86: 45.714 | E86: 16.23 | H86: 90.264 | J86: Plastic 2. PE | L86: 1.15 | M86: 27.17 | N86: 2.709 | O86: 43.005 | P86: 15.974 | Q86: 0.256 | W86: 90.264
A87: Plastic 3. ABS | H87: 0 | J87: Plastic 3. ABS | W87: 0
A88: Other Plastic | H88: 0 | J88: Other Plastic | W88: 0
A89: Other | H89: 0 | J89: Other | W89: 0
A90: System Totals | B90: =SUM(B81:B89) -> 0 | C90: 46.28 | D90: 62.484 | E90: 25.96 | F90: 2.29 | G90: 2.06 | H90: 139.074 | J90: System Totals | K90: =SUM(K81:K89) -> 0 | L90: =SUM(L81:L89) -> 2.78 | M90: 43.5 | N90: 5.479 | O90: 57.001 | P90: 20.694 | Q90: 5.266 | R90: 0 | S90: 2.29 | T90: 0 | U90: 2.058 | V90: 0 | W90: 139.068
A93: Permian
A94: Miles of Mains in System at End of Year - 2023 DOT Report filed March 2024 | J94: MILES OF MAINS FOR RATES BY PIPE SIZE
D95: Over 2" | E95: Over 4" | F95: Over 8" | G95: Over 12" | J95: Material | K95: Unknown | L95: 1" | M95: 2" | N95: 3" | O95: 4" | P95: 6" | Q95: 8" | R95: 10" | S95: 12" | T95: 14" | U95: 16" | V95: 20" | W95: TOTAL
A96: Material | B96: Unknown | C96: 2" or less | D96: thru 4" | E96: thru 8" | F96: thru 12" | H96: TOTAL
A97: Steel | C97: 165.77 | D97: 57.61 | E97: 39.99 | H97: =SUM(B97:G97) -> 263.37 | J97: Steel | L97: 11.62 | M97: 154.15 | N97: 17.2 | O97: 40.41 | P97: 39.99 | W97: =SUM(K97:V97) -> 263.37
A98: Ductile Iron | H98: =SUM(B98:G98) -> 0 | J98: Ductile Iron | W98: =SUM(K98:V98) -> 0
A99: Copper | H99: 0 | J99: Copper | W99: 0
A100: Cast / Wrought Iron | H100: 0 | J100: Cast / Wrought Iron | W100: 0
A101: Plastic 1. PVC | H101: 0 | J101: Plastic 1. PVC | W101: 0
A102: Plastic 2. PE | C102: 67.97 | D102: 21.01 | E102: 11.05 | H102: 100.03 | J102: Plastic 2. PE | L102: 3.38 | M102: 64.591 | N102: 4.979 | O102: 16.034 | P102: 11.05 | W102: 100.034
A103: Plastic 3. ABS | C103: 0.32 | H103: 0.32 | J103: Plastic 3. ABS | M103: 0.32 | W103: 0.32
A104: Other Plastic | H104: 0 | J104: Other Plastic | W104: 0
A105: Other | H105: 0 | J105: Other | W105: 0
A106: System Totals | B106: =SUM(B97:B105) -> 0 | C106: 234.06 | D106: 78.62 | E106: 51.04 | F106: 0 | G106: 0 | H106: 363.72 | J106: System Totals | K106: =SUM(K97:K105) -> 0 | L106: =SUM(L97:L105) -> 15 | M106: 219.061 | N106: 22.179 | O106: 56.444 | P106: 51.04 | Q106: 0 | R106: 0 | S106: 0 | T106: 0 | U106: 0 | V106: 0 | W106: 363.724
A109: Borger-SK
A110: Miles of Mains in System at End of Year - 2023 DOT Report filed March 2024 | J110: MILES OF MAINS FOR RATES BY PIPE SIZE
D111: Over 2" | E111: Over 4" | F111: Over 8" | G111: Over 12" | J111: Material | K111: Unknown | L111: 1" | M111: 2" | N111: 3" | O111: 4" | P111: 6" | Q111: 8" | R111: 10" | S111: 12" | T111: 14" | U111: 16" | V111: 20" | W111: TOTAL
A112: Material | B112: Unknown | C112: 2" or less | D112: thru 4" | E112: thru 8" | F112: thru 12" | H112: TOTAL
A113: Steel | C113: 59.23 | D113: 12.6 | E113: 6.23 | H113: =SUM(B113:G113) -> 78.06 | J113: Steel | L113: 0.76 | M113: 58.466 | N113: 0.97 | O113: 11.631 | P113: 5.19 | Q113: 1.044 | W113: =SUM(K113:V113) -> 78.061
A114: Ductile Iron | H114: =SUM(B114:G114) -> 0 | J114: Ductile Iron | W114: =SUM(K114:V114) -> 0
A115: Copper | H115: 0 | J115: Copper | W115: 0
A116: Cast / Wrought Iron | H116: 0 | J116: Cast / Wrought Iron | W116: 0
A117: Plastic 1. PVC | H117: 0 | J117: Plastic 1. PVC | W117: 0
A118: Plastic 2. PE | C118: 32.29 | D118: 14.35 | E118: 2.67 | H118: 49.31 | J118: Plastic 2. PE | L118: 1.68 | M118: 30.613 | N118: 2.424 | O118: 11.925 | P118: 2.665 | W118: 49.307
A119: Plastic 3. ABS | H119: 0 | J119: Plastic 3. ABS | W119: 0
A120: Other Plastic | H120: 0 | J120: Other Plastic | W120: 0
A121: Other | H121: 0 | J121: Other | W121: 0
A122: System Totals | B122: =SUM(B113:B121) -> 0 | C122: 91.52 | D122: 26.95 | E122: 8.9 | F122: 0 | G122: 0 | H122: 127.37 | J122: System Totals | K122: =SUM(K113:K121) -> 0 | L122: =SUM(L113:L121) -> 2.44 | M122: 89.079 | N122: 3.394 | O122: 23.556 | P122: 7.855 | Q122: 1.044 | R122: 0 | S122: 0 | T122: 0 | U122: 0 | V122: 0 | W122: 127.368
A125: NTX
A126: Miles of Mains in System at End of Year - 2023 DOT Report filed March 2024 | J126: MILES OF MAINS FOR RATES BY PIPE SIZE
D127: Over 2" | E127: Over 4" | F127: Over 8" | G127: Over 12" | J127: Material | K127: Unknown | L127: 1" | M127: 2" | N127: 3" | O127: 4" | P127: 6" | Q127: 8" | R127: 10" | S127: 12" | T127: 14" | U127: 16" | V127: 20" | W127: TOTAL
A128: Material | B128: Unknown | C128: 2" or less | D128: thru 4" | E128: thru 8" | F128: thru 12" | H128: TOTAL
A129: Steel | C129: 124.5 | D129: 104.65 | E129: 33.96 | F129: 0.32 | H129: =SUM(B129:G129) -> 263.43 | J129: Steel | L129: 13.01 | M129: 111.49 | N129: 16.09 | O129: 88.564 | P129: 30.19 | Q129: 3.766 | R129: 0.323 | W129: =SUM(K129:V129) -> 263.433
A130: Ductile Iron | H130: =SUM(B130:G130) -> 0 | J130: Ductile Iron | W130: =SUM(K130:V130) -> 0
A131: Copper | H131: 0 | J131: Copper | W131: 0
A132: Cast / Wrought Iron | H132: 0 | J132: Cast / Wrought Iron | W132: 0
A133: Plastic 1. PVC | C133: 38.37 | D133: 18.78 | H133: 57.15 | J133: Plastic 1. PVC | L133: 1.055 | M133: 37.31 | N133: 0.128 | O133: 18.652 | W133: 57.145
A134: Plastic 2. PE | C134: 151.46 | D134: 149.99 | E134: 21.89 | H134: 323.34 | J134: Plastic 2. PE | L134: 7.334 | M134: 144.13 | N134: 25.33 | O134: 124.661 | P134: 21.587 | Q134: 0.3 | W134: 323.342
A135: Plastic 3. ABS | C135: 0.06 | H135: 0.06 | J135: Plastic 3. ABS | M135: 0.062 | W135: 0.062
A136: Other Plastic | H136: 0 | J136: Other Plastic | W136: 0
A137: Other | H137: 0 | J137: Other | W137: 0
A138: System Totals | B138: =SUM(B129:B137) -> 0 | C138: 314.39 | D138: 273.42 | E138: 55.85 | F138: 0.32 | G138: 0 | H138: 643.98 | J138: System Totals | K138: =SUM(K129:K137) -> 0 | L138: =SUM(L129:L137) -> 21.399 | M138: 292.992 | N138: 41.548 | O138: 231.877 | P138: 51.777 | Q138: 4.066 | R138: 0.323 | S138: 0 | T138: 0 | U138: 0 | V138: 0 | W138: 643.982
A141: RGV
A142: Miles of Mains in System at End of Year - 2023 DOT Report filed March 2024 | J142: MILES OF MAINS FOR RATES BY PIPE SIZE
D143: Over 2" | E143: Over 4" | F143: Over 8" | G143: Over 12" | J143: Material | K143: Unknown | L143: 1" | M143: 2" | N143: 3" | O143: 4" | P143: 6" | Q143: 8" | R143: 10" | S143: 12" | T143: 14" | U143: 16" | V143: 20" | W143: TOTAL
A144: Material | B144: Unknown | C144: 2" or less | D144: thru 4" | E144: thru 8" | F144: thru 12" | H144: TOTAL
A145: Steel | C145: 878.97 | D145: 423.34 | E145: 115.71 | F145: 72.01 | G145: 0.01 | H145: =SUM(B145:G145) -> 1490.04 | J145: Steel | L145: 20.588 | M145: 858.379 | N145: 57.919 | O145: =365.42+0.011 -> 365.431 | P145: 78.349 | Q145: 37.354 | R145: 17.815 | S145: 54.202 | W145: =SUM(K145:V145) -> 1490.037
A146: Ductile Iron | H146: =SUM(B146:G146) -> 0 | J146: Ductile Iron | W146: =SUM(K146:V146) -> 0
A147: Copper | H147: 0 | J147: Copper | W147: 0
A148: Cast / Wrought Iron | H148: 0 | J148: Cast / Wrought Iron | W148: 0
A149: Plastic 1. PVC | H149: 0 | J149: Plastic 1. PVC | W149: 0
A150: Plastic 2. PE | C150: 764.76 | D150: 81.93 | E150: 15.87 | H150: 862.56 | J150: Plastic 2. PE | L150: 25.954 | M150: 738.806 | N150: 0.053 | O150: 81.88 | P150: 15.87 | W150: 862.563
A151: Plastic 3. ABS | H151: 0 | J151: Plastic 3. ABS | W151: 0
A152: Other Plastic | H152: 0 | J152: Other Plastic | W152: 0
A153: Other | H153: 0 | J153: Other | W153: 0
A154: System Totals | B154: =SUM(B145:B153) -> 0 | C154: 1643.73 | D154: 505.27 | E154: 131.58 | F154: 72.01 | G154: 0.01 | H154: 2352.6 | J154: System Totals | K154: =SUM(K145:K153) -> 0 | L154: =SUM(L145:L153) -> 46.542 | M154: 1597.185 | N154: 57.972 | O154: 447.311 | P154: 94.219 | Q154: 37.354 | R154: 17.815 | S154: 54.202 | T154: 0 | U154: 0 | V154: 0 | W154: 2352.6

Sheet Per Ft Cost_CTX
A1: Cost of Installed New Mains By Size and Composition
A2: CTX Service Main
B3: Size | D3: Cost of Material | G3: Stores Load | I3: Labor | K3: Total Cost/Ft
G4: 0.218625 | K4: 0.3341666667 | L4: COH
A6: Steel | B6: 1 | D6: 4.75 | G6: =D6*(1+$G$4) -> 5.78846875 | I6: =+I78 -> 25.6 | K6: =(I6+G6)*(1+$K$4) -> 41.87744872
B7: 2 | D7: 9.55 | G7: 11.63786875 | I7: 25.6 | K7: 49.68152322
B8: 3 | D8: 10.58 | G8: 12.8930525 | I8: 28.75 | K8: 55.55877254
B9: 4 | D9: 8.12 | G9: 9.895235 | I9: 28.75 | K9: 51.55918436
B10: 6 | D10: 13.45 | G10: 16.39050625 | I10: 31.2 | K10: 63.49366709
B11: 8 | D11: 19.78 | G11: 24.1044025 | I11: 35 | K11: 78.85512367
B12: 10 | D12: 29.95 | G12: 36.49781875 | I12: 48.3 | K12: 113.1344232
B13: 12 | D13: 36.76 | G13: 44.796655 | I13: 52.4 | K13: 129.6765372
B14: 14 | D14: 61.97 | G14: 75.51819125 | I14: 78.8 | K14: 205.8861868
B15: 16 | D15: 52.86 | G15: 64.4165175 | I15: 78.8 | K15: 191.0747038
B16: 20 | D16: 72.36 | G16: 88.179705 | I16: 137.325 | K16: 300.8608606
A17: Plastic
B18: 1 | D18: 0.65 | G18: =D18*(1+$G$4) -> 0.79210625 | I18: =+D66 -> 18.25 | K18: =(I18+G18)*(1+$K$4) -> 25.40534342
B19: 2 | D19: 1.02 | G19: 1.2429975 | I19: =+D67 -> 18.25 | K19: 26.0069075
B20: 3 | D20: 1.49 | G20: 1.81575125 | I20: =+D68 -> 21 | K20: 30.44001479
B21: 4 | D21: 3.52 | G21: 4.28956 | I21: =+D69 -> 21 | K21: 33.74048797
B22: 6 | D22: 7.63 | G22: 9.29810875 | I22: =+D70 -> 23.6 | K22: 43.89156009
B23: 8 | D23: 14.18 | G23: 17.2801025 | I23: =+D71 -> 26.35 | K23: 58.20982842
B24: 12 | D24: 20.03 | G24: 24.40905875 | I24: 62.901 | K24: 116.48617
A25: Wrought Iron
B26: 1 | D26: 4.75 | G26: =D26*(1+$G$4) -> 5.78846875 | I26: =N66 -> 25.6 | K26: =(I26+G26)*(1+$K$4) -> 41.87744872
B27: 2 | D27: 9.55 | G27: 11.63786875 | I27: =N67 -> 25.6 | K27: 49.68152322
B28: 3 | D28: 10.58 | G28: 12.8930525 | I28: =N68 -> 28.75 | K28: 55.55877254
B29: 4 | D29: 8.12 | G29: 9.895235 | I29: =N69 -> 28.75 | K29: 51.55918436
B30: 6 | D30: 13.45 | G30: 16.39050625 | I30: =N70 -> 31.2 | K30: 63.49366709
A33: 2024 Data
A34: No Soil Upcharge Cost - 10% | F34: No Soil Upcharge Cost - 10% | K34: No Soil Upcharge Cost - 10%
A35: Type | B35: Size | D35: Labor Rate/Ft | F35: Type | G35: Size | I35: Labor Rate/Ft | K35: Type | L35: Size | N35: Labor Rate/Ft
A36: Plastic | B36: 1" | D36: 15.5 | F36: Steel | G36: 1" | I36: 21 | K36: Wrought Iron | L36: 1" | N36: =I36 -> 21
A37: Plastic | B37: 2" | D37: =D36 -> 15.5 | F37: Steel | G37: 2" | I37: =I36 -> 21 | K37: Wrought Iron | L37: 2" | N37: 21
A38: Plastic | B38: 3" | D38: 16.5 | F38: Steel | G38: 3" | I38: 24 | K38: Wrought Iron | L38: 3" | N38: 24
A39: Plastic | B39: 4" | D39: =D38 -> 16.5 | F39: Steel | G39: 4" | I39: =I38 -> 24 | K39: Wrought Iron | L39: 4" | N39: 24
A40: Plastic | B40: 6" | D40: 20 | F40: Steel | G40: 6" | I40: 29 | K40: Wrought Iron | L40: 6" | N40: 29
A41: Plastic | B41: 8" | D41: 23.5 | F41: Steel | G41: 8" | I41: 32
A42: Plastic | B42: 12" | D42: 55.61 | F42: Steel | G42: 10" | I42: 37
F43: Steel | G43: 12" | I43: 41
A44: Mix Soil Cost - 80% | F44: Steel | G44: 14" | I44: 70 | K44: Mix Soil Cost - 80%
A45: Type | B45: Size | D45: Labor Rate/Ft | F45: Steel | G45: 16" | I45: 70 | K45: Type | L45: Size | N45: Labor Rate/Ft
A46: Plastic | B46: 1" | D46: 18 | F46: Steel | G46: 20" | I46: 115.51 | K46: Wrought Iron | L46: 1" | N46: =I50 -> 26
A47: Plastic | B47: 2" | D47: =D46 -> 18 | K47: Wrought Iron | L47: 2" | N47: 26
A48: Plastic | B48: 3" | D48: 21 | F48: Mix Soil Cost - 80% | K48: Wrought Iron | L48: 3" | N48: 29
A49: Plastic | B49: 4" | D49: =D48 -> 21 | F49: Type | G49: Size | I49: Labor Rate/Ft | K49: Wrought Iron | L49: 4" | N49: 29
A50: Plastic | B50: 6" | D50: 23.5 | F50: Steel | G50: 1" | I50: 26 | K50: Wrought Iron | L50: 6" | N50: 31
A51: Plastic | B51: 8" | D51: 26 | F51: Steel | G51: 2" | I51: =I50 -> 26
A52: Plastic | B52: 12" | D52: 64.26 | F52: Steel | G52: 3" | I52: 29
F53: Steel | G53: 4" | I53: =I52 -> 29
A54: Rock Soil Cost - 10% | F54: Steel | G54: 6" | I54: 31 | K54: Rock Soil Cost - 10%
A55: Type | B55: Size | D55: Labor Rate/Ft | F55: Steel | G55: 8" | I55: 35 | K55: Type | L55: Size | N55: Labor Rate/Ft
A56: Plastic | B56: 1" | D56: 23 | F56: Steel | G56: 10" | I56: 49 | K56: Wrought Iron | L56: 1" | N56: =I64 -> 27
A57: Plastic | B57: 2" | D57: =D56 -> 23 | F57: Steel | G57: 12" | I57: 53 | K57: Wrought Iron | L57: 2" | N57: 27
A58: Plastic | B58: 3" | D58: 25.5 | F58: Steel | G58: 14" | I58: 80 | K58: Wrought Iron | L58: 3" | N58: 31.5
A59: Plastic | B59: 4" | D59: =D58 -> 25.5 | F59: Steel | G59: 16" | I59: 80 | K59: Wrought Iron | L59: 4" | N59: 31.5
A60: Plastic | B60: 6" | D60: 28 | F60: Steel | G60: 20" | I60: 133.62 | K60: Wrought Iron | L60: 6" | N60: 35
A61: Plastic | B61: 8" | D61: 32
A62: Plastic | B62: 12" | D62: 59.32 | F62: Rock Soil Cost - 10%
F63: Type | G63: Size | I63: Labor Rate/Ft
A64: AVERAGE (Weighted) | F64: Steel | G64: 1" | I64: 27 | K64: AVERAGE (Weighted)
A65: Type | B65: Size | D65: Labor Rate/Ft | F65: Steel | G65: 2" | I65: =I64 -> 27 | K65: Type | L65: Size | N65: Labor Rate/Ft
A66: Plastic | B66: 1" | D66: =+(D36*1+D46*8+D56*1)/10 -> 18.25 | F66: Steel | G66: 3" | I66: 31.5 | K66: Wrought Iron | L66: 1" | N66: =+(N36*1+N46*8+N56*1)/10 -> 25.6
A67: Plastic | B67: 2" | D67: =+(D37*1+D47*8+D57*1)/10 -> 18.25 | F67: Steel | G67: 4" | I67: =I66 -> 31.5 | K67: Wrought Iron | L67: 2" | N67: =+(N37*1+N47*8+N57*1)/10 -> 25.6
A68: Plastic | B68: 3" | D68: =+(D38*1+D48*8+D58*1)/10 -> 21 | F68: Steel | G68: 6" | I68: 35 | K68: Wrought Iron | L68: 3" | N68: 28.75
A69: Plastic | B69: 4" | D69: =+(D39*1+D49*8+D59*1)/10 -> 21 | F69: Steel | G69: 8" | I69: 38 | K69: Wrought Iron | L69: 4" | N69: 28.75
A70: Plastic | B70: 6" | D70: =+(D40*1+D50*8+D60*1)/10 -> 23.6 | F70: Steel | G70: 10" | I70: 54 | K70: Wrought Iron | L70: 6" | N70: 31.2
A71: Plastic | B71: 8" | D71: =+(D41*1+D51*8+D61*1)/10 -> 26.35 | F71: Steel | G71: 12" | I71: 59
A72: Plastic | B72: 12" | D72: 62.901 | F72: Steel | G72: 14" | I72: 78
F73: Steel | G73: 16" | I73: 78
F74: Steel | G74: 20" | I74: 188.78
F76: AVERAGE (Weighted)
F77: Type | G77: Size | I77: Labor Rate/Ft
F78: Steel | G78: 1" | I78: =+(I36*1+I50*8+I64*1)/10 -> 25.6
F79: Steel | G79: 2" | I79: =+(I37*1+I51*8+I65*1)/10 -> 25.6
F80: Steel | G80: 3" | I80: 28.75
F81: Steel | G81: 4" | I81: 28.75
F82: Steel | G82: 6" | I82: 31.2
F83: Steel | G83: 8" | I83: 35
F84: Steel | G84: 10" | I84: 48.3
F85: Steel | G85: 12" | I85: 52.4
F86: Steel | G86: 14" | I86: 78.8
F87: Steel | G87: 16" | I87: 78.8
F88: Steel | G88: 20" | I88: 137.325

Sheet Per Ft Cost_STX
A1: Cost of Installed New Mains By Size and Composition
A2: STX Main
B3: Size | D3: Cost of Material | G3: Stores Load | I3: Labor | K3: Total Cost/Ft
G4: 0.218625 | K4: 0.3341666667 | L4: COH
A5: Plastic
B6: 1 | D6: 0.65 | G6: =D6*(1+$G$4) -> 0.79210625 | I6: =+D49 -> 13.3225 | K6: =(I6+G6)*(1+$K$4) -> 18.83123717
B7: 2 | D7: 1.02 | G7: 1.2429975 | I7: =+D50 -> 13.3225 | K7: 19.43280125
B8: 3 | D8: 1.49 | G8: 1.81575125 | I8: =+D51 -> 14.7245 | K8: 22.06745188
B9: 4 | D9: 3.52 | G9: 4.28956 | I9: =+D52 -> 14.7245 | K9: 25.36792505
B10: 6 | D10: 7.63 | G10: 9.29810875 | I10: =+D53 -> 17.385 | K10: 35.59971426
A11: Steel
B12: 1 | D12: 3.36 | G12: =D12*(1+$G$4) -> 4.09458 | I12: =+I59 -> 15.7325 | K12: =(I12+G12)*(1+$K$4) -> 26.45262923
B13: 2 | D13: 6.87 | G13: 8.37195375 | I13: 15.7325 | K13: 32.15935871
B14: 3 | D14: 11.52 | G14: 14.03856 | I14: 18.0385 | K14: 42.79614422
B15: 4 | D15: 11.1 | G15: 13.5267375 | I15: 18.0385 | K15: 42.1132877
B16: 6 | D16: 19.01 | G16: 23.16606125 | I16: 21.0145 | K16: 58.94423213
B17: 8 | D17: 28.22 | G17: 34.3895975 | I17: 23.6745 | K17: 77.46718341
A19: 2024 Data
A20: No Soil Adder Cost - 75% | F20: No Soil Adder Cost - 75%
A21: Type | B21: Size | D21: Labor Rate/Ft | F21: Type | G21: Size | I21: Labor Rate/Ft
A22: Plastic | B22: 1" | D22: 12.93 | F22: Steel | G22: 1" | I22: 15.17
A23: Plastic | B23: 2" | D23: 12.93 | F23: Steel | G23: 2" | I23: 15.17
A24: Plastic | B24: 3" | D24: 14.05 | F24: Steel | G24: 3" | I24: 17.42
A25: Plastic | B25: 4" | D25: 14.05 | F25: Steel | G25: 4" | I25: 17.42
A26: Plastic | B26: 6" | D26: 16.85 | F26: Steel | G26: 6" | I26: 20.79
F27: Steel | G27: 8" | I27: 23.59
A29: Mix Soil Cost -20%
A30: Type | B30: Size | D30: Labor Rate/Ft
A31: Plastic | B31: 1" | D31: 14.05
A32: Plastic | B32: 2" | D32: 14.05
A33: Plastic | B33: 3" | D33: 16.3 | F33: Mix Soil Cost - 20%
A34: Plastic | B34: 4" | D34: 16.3 | F34: Type | G34: Size | I34: Labor Rate/Ft
A35: Plastic | B35: 6" | D35: 18.54 | F35: Steel | G35: 1" | I35: 17.42
F36: Steel | G36: 2" | I36: 17.42
F37: Steel | G37: 3" | I37: 19.67
A38: Rock Soil Cost - 5% | F38: Steel | G38: 4" | I38: 19.67
A39: Type | B39: Size | D39: Labor Rate/Ft | F39: Steel | G39: 6" | I39: 21.35
A40: Plastic | B40: 1" | D40: 16.3 | F40: Steel | G40: 8" | I40: 23.59
A41: Plastic | B41: 2" | D41: 16.3
A42: Plastic | B42: 3" | D42: 18.54
A43: Plastic | B43: 4" | D43: 18.54
A44: Plastic | B44: 6" | D44: 20.79
F46: Rock Soil Cost - 5%
A47: AVERAGE (Weighted) | F47: Type | G47: Size | I47: Labor Rate/Ft
A48: Type | B48: Size | D48: Labor Rate/Ft | F48: Steel | G48: 1" | I48: 17.42
A49: Plastic | B49: 1" | D49: =+(D22*7.5+D31*2+D40*0.5)/10 -> 13.3225 | F49: Steel | G49: 2" | I49: 17.42
A50: Plastic | B50: 2" | D50: 13.3225 | F50: Steel | G50: 3" | I50: 20.79
A51: Plastic | B51: 3" | D51: 14.7245 | F51: Steel | G51: 4" | I51: 20.79
A52: Plastic | B52: 4" | D52: 14.7245 | F52: Steel | G52: 6" | I52: 23.04
A53: Plastic | B53: 6" | D53: 17.385 | F53: Steel | G53: 8" | I53: 25.28
F57: AVERAGE (Weighted)
F58: Type | G58: Size | I58: Labor Rate/Ft
F59: Steel | G59: 1" | I59: =+(I22*7.5+I35*2+I48*0.5)/10 -> 15.7325
F60: Steel | G60: 2" | I60: 15.7325
F61: Steel | G61: 3" | I61: 18.0385
F62: Steel | G62: 4" | I62: 18.0385
F63: Steel | G63: 6" | I63: 21.0145
F64: Steel | G64: 8" | I64: 23.6745

Sheet Per Ft Cost_PA&G
A1: Cost of Installed New Mains By Size and Composition
A2: Port Arthur and Galveston Main
B3: Size | D3: Cost of Material | G3: Stores Load | I3: Labor | K3: Total Cost/Ft
G4: 0.218625 | K4: 0.3341666667 | L4: COH
A5: Plastic
B6: 1 | D6: 0.65 | G6: =D6*(1+$G$4) -> 0.79210625 | I6: =+D27 -> 12.25 | K6: =(I6+G6)*(1+$K$4) -> 17.40034342
B7: 2 | D7: 1.02 | G7: 1.2429975 | I7: 12.25 | K7: 18.0019075
B8: 3 | D8: 1.49 | G8: 1.81575125 | I8: 15.25 | K8: 22.76855646
B9: 4 | D9: 3.52 | G9: 4.28956 | I9: 15.25 | K9: 26.06902963
B10: 6 | D10: 7.63 | G10: 9.29810875 | I10: 17.25 | K10: 35.41960176
B11: 8 | D11: 14.18 | G11: 17.2801025 | I11: 20.25 | K11: 50.07141175
A13: Steel
B14: 1 | D14: 3.36 | G14: 4.09458 | I14: =+I27 -> 21.25 | K14: 33.81389382
B15: 2 | D15: 6.87 | G15: 8.37195375 | I15: 21.25 | K15: 39.52062329
B16: 3 | D16: 11.52 | G16: 14.03856 | I16: 26.25 | K16: 53.7516538
B17: 4 | D17: 11.1 | G17: 13.5267375 | I17: 26.25 | K17: 53.06879728
B18: 6 | D18: 19.01 | G18: 23.16606125 | I18: 34.25 | K18: 76.60259505
B19: 8 | D19: 28.22 | G19: 34.3895975 | I19: 49.25 | K19: 111.589163
B20: 10 | D20: 41.12 | G20: 50.10986 | I20: 56.25 | K20: 141.9017799
B21: 12 | D21: 50.21 | G21: 61.18716125 | I21: =+I34 -> 68.25 | K21: 172.690746
B22: 14 | D22: 61.97 | G22: 75.51819125 | I22: =+I35 -> 80.25 | K22: 207.8207285
A24: 2024 Data
A25: No Soil Addeder Cost - 100% | F25: No Soil Addeder Cost - 100%
A26: Type | B26: Size | D26: Labor Rate/Ft | F26: Type | G26: Size | I26: Labor Rate/Ft
A27: Plastic | B27: 1" | D27: 12.25 | F27: Steel | G27: 1" | I27: 21.25
A28: Plastic | B28: 2" | D28: 12.25 | F28: Steel | G28: 2" | I28: 21.25
A29: Plastic | B29: 3" | D29: 15.25 | F29: Steel | G29: 3" | I29: 26.25
A30: Plastic | B30: 4" | D30: 15.25 | F30: Steel | G30: 4" | I30: 26.25
A31: Plastic | B31: 6" | D31: 17.25 | F31: Steel | G31: 6" | I31: 34.25
A32: Plastic | B32: 8" | D32: 20.25 | F32: Steel | G32: 8" | I32: 49.25
F33: Steel | G33: 10" | I33: 56.25
F34: Steel | G34: 12" | I34: 68.25
F35: Steel | G35: 14" | I35: =I34-I33+I34 -> 80.25

Sheet Per Ft Cost WTX
A1: Cost of Installed New Mains By Size and Composition
A2: WTX Service Main
B3: Size | D3: Cost of Material | G3: Stores Load | I3: Labor | K3: Total Cost/Ft
G4: 0.218625 | K4: 0.3341666667 | L4: COH
A5: Plastic
B6: 1 | D6: 0.65 | G6: =D6*(1+$G$4) -> 0.79210625 | I6: =+D54 -> 16.6365 | K6: =(I6+G6)*(1+$K$4) -> 23.25266551
B7: 2 | D7: 1.02 | G7: =D7*(1+$G$4) -> 1.2429975 | I7: =+D55 -> 16.6365 | K7: 23.85422958
B8: 3 | D8: 1.49 | G8: 1.81575125 | I8: 19.585 | K8: 28.55216896
B9: 4 | D9: 3.89 | G9: 4.74045125 | I9: 19.585 | K9: 32.45420621
B10: 6 | D10: 7.91 | G10: 9.63932375 | I10: 25.249 | K10: 46.5468386
B11: 8 | D11: 14.18 | G11: 17.2801025 | I11: 31.5235 | K11: 65.11213967
B12: 10 | D12: 22.24 | G12: 27.10222 | I12: 37.798 | K12: 86.58771018
A13: Steel
B14: 1 | D14: 3.36 | G14: 4.09458 | I14: =+I66 -> 22.2095 | K14: 35.09402673
B15: 2 | D15: 6.91 | G15: 8.42069875 | I15: 22.2095 | K15: 40.86579017
B16: 3 | D16: 11.52 | G16: 14.03856 | I16: 26.1635 | K16: 53.63624838
B17: 4 | D17: 11.18 | G17: 13.6242275 | I17: 26.1635 | K17: 53.08345977
B18: 6 | D18: 20.15 | G18: 24.55529375 | I18: 33.6485 | K18: 77.65356149
B19: 8 | D19: 28.22 | G19: 34.3895975 | I19: 42.1695 | K19: 102.1425959
B20: 10 | D20: 41.12 | G20: 50.10986 | I20: 47.3125 | K20: 129.9776653
B21: 12 | D21: 66.94 | G21: 81.5747575 | I21: 76.324 | K21: 210.663259
B22: 16 | D22: 40.7 | G22: 49.5980375 | I22: 114.236 | K22: 218.5819117
A24: 2024 Data
A25: No Soil Adder Cost - 15% | F25: No Soil Adder Cost - 15%
A26: Type | B26: Size | D26: Labor Rate/Ft | F26: Type | G26: Size | I26: Labor Rate/Ft
A27: Plastic | B27: 1" | D27: 11.44 | F27: Steel | G27: 1" | I27: 14.72
A28: Plastic | B28: 2" | D28: 11.44 | F28: Steel | G28: 2" | I28: 14.72
A29: Plastic | B29: 3" | D29: 13.16 | F29: Steel | G29: 3" | I29: 17.05
A30: Plastic | B30: 4" | D30: 13.16 | F30: Steel | G30: 4" | I30: 17.05
A31: Plastic | B31: 6" | D31: 17.48 | F31: Steel | G31: 6" | I31: 22.26
A32: Plastic | B32: 8" | D32: 21.4 | F32: Steel | G32: 8" | I32: 28.19
A33: Plastic | B33: 10" | D33: =+D32-D31+D32 -> 25.32 | F33: Steel | G33: 10" | I33: 31.91
A34: Mix Soil Cost -70% | F34: Steel | G34: 12" | I34: 67.5
A35: Type | B35: Size | D35: Labor Rate/Ft | F35: Steel | G35: 16" | I35: 92.3
A36: Plastic | B36: 1" | D36: 15.39
A37: Plastic | B37: 2" | D37: 15.39
A38: Plastic | B38: 3" | D38: 17.38 | F38: Mix Soil Cost - 70%
A39: Plastic | B39: 4" | D39: 17.38 | F39: Type | G39: Size | I39: Labor Rate/Ft
A40: Plastic | B40: 6" | D40: 22.75 | F40: Steel | G40: 1" | I40: 20.63
A41: Plastic | B41: 8" | D41: 28.3 | F41: Steel | G41: 2" | I41: 20.63
A42: Plastic | B42: 10" | D42: =+D41-D40+D41 -> 33.85 | F42: Steel | G42: 3" | I42: 23.3
A43: Rock Soil Cost - 15% | F43: Steel | G43: 4" | I43: 23.3
A44: Type | B44: Size | D44: Labor Rate/Ft | F44: Steel | G44: 6" | I44: 30.47
A45: Plastic | B45: 1" | D45: 27.65 | F45: Steel | G45: 8" | I45: 37.92
A46: Plastic | B46: 2" | D46: 27.65 | F46: Steel | G46: 10" | I46: 43.15
A47: Plastic | B47: 3" | D47: 36.3 | F47: Steel | G47: 12" | I47: 75.4
A48: Plastic | B48: 4" | D48: 36.3 | F48: Steel | G48: 16" | I48: 112.43
A49: Plastic | B49: 6" | D49: 44.68
A50: Plastic | B50: 8" | D50: 56.69
A51: Plastic | B51: 10" | D51: =+D50-D49+D50 -> 68.7 | F51: Rock Soil Cost - 15%
A52: AVERAGE (Weighted) | F52: Type | G52: Size | I52: Labor Rate/Ft
A53: Type | B53: Size | D53: Labor Rate/Ft ELP | F53: Steel | G53: 1" | I53: 37.07
A54: Plastic | B54: 1" | D54: =+(D27*1.5+D36*7+D45*1.5)/10 -> 16.6365 | F54: Steel | G54: 2" | I54: 37.07
A55: Plastic | B55: 2" | D55: =+(D28*1.5+D37*7+D46*1.5)/10 -> 16.6365 | F55: Steel | G55: 3" | I55: 48.64
A56: Plastic | B56: 3" | D56: 19.585 | F56: Steel | G56: 4" | I56: 48.64
A57: Plastic | B57: 4" | D57: 19.585 | F57: Steel | G57: 6" | I57: 59.87
A58: Plastic | B58: 6" | D58: 25.249 | F58: Steel | G58: 8" | I58: 75.98
A59: Plastic | B59: 8" | D59: 31.5235 | F59: Steel | G59: 10" | I59: 82.14
A60: Plastic | B60: 10" | D60: 37.798 | F60: Steel | G60: 12" | I60: 89.46
F61: Steel | G61: 16" | I61: 144.6
F64: AVERAGE (Weighted)
F65: Type | G65: Size | I65: Labor Rate/Ft
F66: Steel | G66: 1" | I66: =+(I27*1.5+I40*7+I53*1.5)/10 -> 22.2095
F67: Steel | G67: 2" | I67: =+(I28*1.5+I41*7+I54*1.5)/10 -> 22.2095
F68: Steel | G68: 3" | I68: 26.1635
F69: Steel | G69: 4" | I69: 26.1635
F70: Steel | G70: 6" | I70: 33.6485
F71: Steel | G71: 8" | I71: 42.1695
F72: Steel | G72: 10" | I72: 47.3125
F73: Steel | G73: 12" | I73: 76.324
F74: Steel | G74: 16" | I74: 114.236

Sheet Per Ft Cost_Permian
A1: Cost of Installed New Mains By Size and Composition
A2: Permian Main
B3: Size | D3: Cost of Material | G3: Stores Load | I3: Labor | K3: Total Cost/Ft
G4: 0.218625 | K4: 0.3341666667 | L4: COH
A5: Plastic
B6: 1 | D6: 0.65 | G6: =D6*(1+$G$4) -> 0.79210625 | I6: =+D48 -> 18.1025 | K6: =(I6+G6)*(1+$K$4) -> 25.20855384
B7: 2 | D7: 1.02 | G7: 1.2429975 | I7: =+D49 -> 18.1025 | K7: 25.81011791
B8: 3 | D8: 1.49 | G8: 1.81575125 | I8: =+D50 -> 24.0425 | K8: 34.49921688
B9: 4 | D9: 3.52 | G9: 4.28956 | I9: =+D51 -> 24.0425 | K9: 37.79969005
B10: 6 | D10: 7.63 | G10: 9.29810875 | I10: =+D52 -> 25.8225 | K10: 46.85674551
A11: Steel
B12: 1 | D12: 3.36 | G12: 4.09458 | I12: =+I57 -> 19.2225 | K12: 31.1088709
B13: 2 | D13: 6.87 | G13: 8.37195375 | I13: =+I58 -> 19.2225 | K13: 36.81560038
B14: 3 | D14: 11.52 | G14: 14.03856 | I14: =+I59 -> 25.5525 | K14: 52.82107255
B15: 4 | D15: 11.1 | G15: 13.5267375 | I15: =+I60 -> 25.5525 | K15: 52.13821603
B16: 6 | D16: 19.01 | G16: 23.16606125 | I16: =+I61 -> 27.3725 | K16: 67.4268638
A18: 2024 Data
A19: No Soil Addeder Cost - 50% | F19: No Soil Addeder Cost - 50%
A20: Type | B20: Size | D20: Labor Rate/Ft | F20: Type | G20: Size | I20: Labor Rate/Ft
A21: Plastic | B21: 1" | D21: 8.9 | F21: Steel | G21: 1" | I21: 10.02
A22: Plastic | B22: 2" | D22: 8.9 | F22: Steel | G22: 2" | I22: 10.02
A23: Plastic | B23: 3" | D23: 14.84 | F23: Steel | G23: 3" | I23: 16.35
A24: Plastic | B24: 4" | D24: 14.84 | F24: Steel | G24: 4" | I24: 16.35
A25: Plastic | B25: 6" | D25: 16.62 | F25: Steel | G25: 6" | I25: 18.17
A28: Mix Soil Cost -25%
A29: Type | B29: Size | D29: Labor Rate/Ft
A30: Plastic | B30: 1" | D30: 20.51
A31: Plastic | B31: 2" | D31: 20.51
A32: Plastic | B32: 3" | D32: 26.45 | F32: Mix Soil Cost - 25%
A33: Plastic | B33: 4" | D33: 26.45 | F33: Type | G33: Size | I33: Labor Rate/Ft
A34: Plastic | B34: 6" | D34: 28.23 | F34: Steel | G34: 1" | I34: 21.63
F35: Steel | G35: 2" | I35: 21.63
F36: Steel | G36: 3" | I36: 27.96
A37: Rock Soil Cost - 25% | F37: Steel | G37: 4" | I37: 27.96
A38: Type | B38: Size | D38: Labor Rate/Ft | F38: Steel | G38: 6" | I38: 29.78
A39: Plastic | B39: 1" | D39: 34.1
A40: Plastic | B40: 2" | D40: 34.1
A41: Plastic | B41: 3" | D41: 40.04
A42: Plastic | B42: 4" | D42: 40.04
A43: Plastic | B43: 6" | D43: 41.82
F45: Rock Soil Cost - 25%
A46: AVERAGE (Weighted) | F46: Type | G46: Size | I46: Labor Rate/Ft
A47: Type | B47: Size | D47: Labor Rate/Ft | F47: Steel | G47: 1" | I47: 35.22
A48: Plastic | B48: 1" | D48: =+(D21*5+D30*2.5+D39*2.5)/10 -> 18.1025 | F48: Steel | G48: 2" | I48: 35.22
A49: Plastic | B49: 2" | D49: =+(D22*5+D31*2.5+D40*2.5)/10 -> 18.1025 | F49: Steel | G49: 3" | I49: 41.55
A50: Plastic | B50: 3" | D50: =+(D23*5+D32*2.5+D41*2.5)/10 -> 24.0425 | F50: Steel | G50: 4" | I50: 41.55
A51: Plastic | B51: 4" | D51: 24.0425 | F51: Steel | G51: 6" | I51: 43.37
A52: Plastic | B52: 6" | D52: 25.8225
F55: AVERAGE (Weighted)
F56: Type | G56: Size | I56: Labor Rate/Ft
F57: Steel | G57: 1" | I57: =+(I21*5+I34*2.5+I47*2.5)/10 -> 19.2225
F58: Steel | G58: 2" | I58: =+(I22*5+I35*2.5+I48*2.5)/10 -> 19.2225
F59: Steel | G59: 3" | I59: =+(I23*5+I36*2.5+I49*2.5)/10 -> 25.5525
F60: Steel | G60: 4" | I60: =+(I24*5+I37*2.5+I50*2.5)/10 -> 25.5525
F61: Steel | G61: 6" | I61: 27.3725

Sheet Per Ft Cost_NTX & Borger
A1: Cost of Installed New Mains By Size and Composition
A2: NTX & Borger Main
B3: Size | D3: Cost of Material | G3: Stores Load | I3: Labor | K3: Total Cost/Ft
G4: 0.218625 | K4: 0.3341666667 | L4: COH
A5: Plastic
B6: 1 | D6: 0.65 | G6: =D6*(1+$G$4) -> 0.79210625 | I6: =+D55 -> 22.54 | K6: =(I6+G6)*(1+$K$4) -> 31.12891842
B7: 2 | D7: 1.02 | G7: 1.2429975 | I7: =+D56 -> 22.54 | K7: 31.7304825
B8: 3 | D8: 1.49 | G8: 1.81575125 | I8: 26.21 | K8: 37.39102313
B9: 4 | D9: 3.52 | G9: 4.28956 | I9: 26.21 | K9: 40.6914963
B10: 6 | D10: 7.63 | G10: 9.29810875 | I10: 37.24 | K10: 62.08959342
B11: 8 | D11: 14.18 | G11: 17.2801025 | I11: 55.61 | K11: 97.24754509
A12: Steel
B13: 1 | D13: 3.36 | G13: 4.09458 | I13: =+I65 -> 38.46 | K13: 56.77490215
B14: 2 | D14: 6.87 | G14: 8.37195375 | I14: 38.46 | K14: 62.48163163
B15: 3 | D15: 11.52 | G15: 14.03856 | I15: 47.03 | K15: 81.47563713
B16: 4 | D16: 11.1 | G16: 13.5267375 | I16: 47.03 | K16: 80.79278061
B17: 6 | D17: 19.01 | G17: 23.16606125 | I17: 71.51 | K17: 126.3136451
B18: 8 | D18: 28.22 | G18: 34.3895975 | I18: 98.45 | K18: 177.230163
B19: 10 | D19: 41.12 | G19: 50.10986 | I19: 125.39 | K19: 234.1460632
A25: 2024 Data
A26: No Soil Addeder Cost - 50% | F26: No Soil Addeder Cost - 50%
A27: Type | B27: Size | D27: Labor Rate/Ft | F27: Type | G27: Size | I27: Labor Rate/Ft
A28: Plastic | B28: 1" | D28: 9.79 | F28: Steel | G28: 1" | I28: 25.71
A29: Plastic | B29: 2" | D29: 9.79 | F29: Steel | G29: 2" | I29: 25.71
A30: Plastic | B30: 3" | D30: 13.46 | F30: Steel | G30: 3" | I30: 34.28
A31: Plastic | B31: 4" | D31: 13.46 | F31: Steel | G31: 4" | I31: 34.28
A32: Plastic | B32: 6" | D32: 24.49 | F32: Steel | G32: 6" | I32: 58.76
A33: Plastic | B33: 8" | D33: 42.86 | F33: Steel | G33: 8" | I33: 85.7
F34: Steel | G34: 10" | I34: 112.64
A35: Mix Soil Cost -25%
A36: Type | B36: Size | D36: Labor Rate/Ft
A37: Plastic | B37: 1" | D37: 27.79
A38: Plastic | B38: 2" | D38: 27.79
A39: Plastic | B39: 3" | D39: 31.46 | F39: Mix Soil Cost - 25%
A40: Plastic | B40: 4" | D40: 31.46 | F40: Type | G40: Size | I40: Labor Rate/Ft
A41: Plastic | B41: 6" | D41: 42.49 | F41: Steel | G41: 1" | I41: 43.71
A42: Plastic | B42: 8" | D42: 60.86 | F42: Steel | G42: 2" | I42: 43.71
F43: Steel | G43: 3" | I43: 52.28
A44: Rock Soil Cost - 25% | F44: Steel | G44: 4" | I44: 52.28
A45: Type | B45: Size | D45: Labor Rate/Ft | F45: Steel | G45: 6" | I45: 76.76
A46: Plastic | B46: 1" | D46: 42.79 | F46: Steel | G46: 8" | I46: 103.7
A47: Plastic | B47: 2" | D47: 42.79 | F47: Steel | G47: 10" | I47: 130.64
A48: Plastic | B48: 3" | D48: 46.46
A49: Plastic | B49: 4" | D49: 46.46
A50: Plastic | B50: 6" | D50: 57.49
A51: Plastic | B51: 8" | D51: 75.86
F52: Rock Soil Cost - 25%
A53: AVERAGE (Weighted) | F53: Type | G53: Size | I53: Labor Rate/Ft
A54: Type | B54: Size | D54: Labor Rate/Ft | F54: Steel | G54: 1" | I54: 58.71
A55: Plastic | B55: 1" | D55: =+(D28*5+D37*2.5+D46*2.5)/10 -> 22.54 | F55: Steel | G55: 2" | I55: 58.71
A56: Plastic | B56: 2" | D56: =+(D29*5+D38*2.5+D47*2.5)/10 -> 22.54 | F56: Steel | G56: 3" | I56: 67.28
A57: Plastic | B57: 3" | D57: =+(D30*5+D39*2.5+D48*2.5)/10 -> 26.21 | F57: Steel | G57: 4" | I57: 67.28
A58: Plastic | B58: 4" | D58: 26.21 | F58: Steel | G58: 6" | I58: 91.76
A59: Plastic | B59: 6" | D59: 37.24 | F59: Steel | G59: 8" | I59: 118.7
A60: Plastic | B60: 8" | D60: 55.61 | F60: Steel | G60: 10" | I60: 145.64
F63: AVERAGE (Weighted)
F64: Type | G64: Size | I64: Labor Rate/Ft
F65: Steel | G65: 1" | I65: =+(I28*5+I41*2.5+I54*2.5)/10 -> 38.46
F66: Steel | G66: 2" | I66: =+(I29*5+I42*2.5+I55*2.5)/10 -> 38.46
F67: Steel | G67: 3" | I67: =+(I30*5+I43*2.5+I56*2.5)/10 -> 47.03
F68: Steel | G68: 4" | I68: =+(I31*5+I44*2.5+I57*2.5)/10 -> 47.03
F69: Steel | G69: 6" | I69: 71.51
F70: Steel | G70: 8" | I70: 98.45
F71: Steel | G71: 10" | I71: 125.39

Sheet Per Ft Cost_RGV
A1: Cost of Installed New Mains By Size and Composition
A2: RGVSA Main
B3: Size | D3: Cost of Material | G3: Stores Load | I3: Contract Labor | K3: Total Cost/Ft
G4: 0.218625 | K4: 0.3341666667 | L4: COH
A5: Plastic
B6: 1.25 | D6: 0.812 | G6: =D6*(1+$G$4) -> 0.9895235 | I6: =D25 -> 10.61 | K6: =(I6+G6)*(1+$K$4) -> 15.4756976
B7: 2 | D7: 0.92 | G7: 1.121135 | I7: =D26 -> 10.61 | K7: 15.65128928
B8: 3 | D8: 2.32 | G8: 2.82721 | I8: =D27 -> 13.09 | K8: 21.23621101
B9: 4 | D9: 3.75 | G9: 4.56984375 | I9: =D28 -> 13.09 | K9: 23.56117487
B10: 6 | D10: 7.92 | G10: 9.65151 | I10: =D29 -> 15.36 | K10: 33.36952293
A11: Steel
B12: 1 | D12: 5.000420008 | G12: =D12*(1+$G$4) -> 6.093636833 | I12: =I25 -> 16.51 | K12: =(I12+G12)*(1+$K$4) -> 30.15701881
B13: 2 | D13: 10.02451758 | G13: 12.21612773 | I13: 16.51 | K13: 38.32544208
B14: 3 | D14: 12.66190813 | G14: 15.43011779 | I14: 20.06 | K14: 47.34973215
B15: 4 | D15: 13.35 | G15: 16.26864375 | I15: 20.06 | K15: 48.46846554
B16: 6 | D16: 21.38154254 | G16: 26.05608228 | I16: 25.48 | K16: 68.75772311
B17: 8 | D17: 27.6458719 | G17: 33.68995065 | I17: 37.39 | K17: 94.83250082
B18: 10 | D18: 34.98491747 | G18: 42.63349505 | I18: 44.77 | K18: 116.6108296
B19: 12 | D19: 81.81258319 | G19: 99.69885919 | I19: 53.68 | K19: 204.6329613
A22: 2024 Data
A23: Dirt (No Adders) - 100% | F23: Dirt (No Adders) - 100%
A24: Type | B24: Size | D24: Labor Rate/Ft | F24: Type | G24: Size | I24: Labor Rate/Ft
A25: Plastic | B25: 1.25" | D25: 10.61 | F25: Steel | G25: 1" | I25: 16.51
A26: Plastic | B26: 2" | D26: 10.61 | F26: Steel | G26: 2" | I26: 16.51
A27: Plastic | B27: 3" | D27: 13.09 | F27: Steel | G27: 3" | I27: 20.06
A28: Plastic | B28: 4" | D28: 13.09 | F28: Steel | G28: 4" | I28: 20.06
A29: Plastic | B29: 6" | D29: 15.36 | F29: Steel | G29: 6" | I29: 25.48
A30: Plastic | B30: 8" | D30: 16.11 | F30: Steel | G30: 8" | I30: 37.39
F31: Steel | G31: 10" | I31: 44.77
F32: Steel | G32: 12" | I32: 53.68
F33: Steel | G33: 16" | I33: 68
